Workbook

Sheet 県計
A1: 第4表 地域振興局別・資源構成表
A3: 全県 | O3: 単位 面積 : ha、蓄積 成長量 : ㎥
B4: 樹種 | C4: 針 葉 樹 | J4: 広 葉 樹 | O4: 計
C5: ス ギ | D5: ヒ ノ キ | E5: サ ワ ラ | F5: ア カ マ ツ | G5: カ ラ マ ツ | H5: そ の 他 針 | I5: 小 計 | J5: ク ヌ ギ | K5: ブ ナ | L5: ナ ラ | M5: そ の 他 広 | N5: 小 計
A6: 齢級
A7: 1 | B7: 面積 | C7: 21.65 | D7: 71.81 | E7: 0.4 | F7: 23.09 | G7: 1020.43 | H7: 0 | I7: 1137.38 | J7: 0.54 | K7: 0.1 | L7: 81.38 | M7: 309.21 | N7: 391.23 | O7: 1528.61
B8: 蓄積 | C8: 0 | D8: 0 | E8: 0 | F8: 0 | G8: 0 | H8: 0 | I8: 0 | J8: 0 | K8: 0 | L8: 0 | M8: 0 | N8: 0 | O8: 0
B9: 成長 | C9: 0 | D9: 0 | E9: 0 | F9: 0 | G9: 0 | H9: 0 | I9: 0 | J9: 0 | K9: 0 | L9: 0 | M9: 0 | N9: 0 | O9: 0
A10: 2 | B10: 面積 | C10: 6.95 | D10: 91.63 | E10: 0.31 | F10: 3.23 | G10: 364.36 | H10: 5.58 | I10: 472.06 | J10: 0.91 | K10: 2.81 | L10: 67.04 | M10: 634.11 | N10: 704.87 | O10: 1176.93
B11: 蓄積 | C11: 0 | D11: 0 | E11: 0 | F11: 0 | G11: 0 | H11: 0 | I11: 0 | J11: 20 | K11: 0 | L11: 817 | M11: 7836 | N11: 8673 | O11: 8673
B12: 成長 | C12: 0 | D12: 0 | E12: 0 | F12: 0 | G12: 0 | H12: 0 | I12: 0 | J12: 5.8 | K12: 0 | L12: 114.6 | M12: 1103.5 | N12: 1223.9 | O12: 1223.9
A13: 3 | B13: 面積 | C13: 18.6 | D13: 231.03 | E13: 2.24 | F13: 5.14 | G13: 74.58 | H13: 0.72 | I13: 332.31 | J13: 0 | K13: 6.74 | L13: 35.35 | M13: 509.46 | N13: 551.55 | O13: 883.86
B14: 蓄積 | C14: 1678 | D14: 11597 | E14: 108 | F14: 297 | G14: 9750 | H14: 31 | I14: 23461 | J14: 0 | K14: 28 | L14: 818 | M14: 11596 | N14: 12442 | O14: 35903
B15: 成長 | C15: 344.8 | D15: 2377.4 | E15: 20.8 | F15: 39.9 | G15: 853 | H15: 4 | I15: 3639.9 | J15: 0 | K15: 5.9 | L15: 70.6 | M15: 1015.2 | N15: 1091.7 | O15: 4731.6
A16: 4 | B16: 面積 | C16: 84.7 | D16: 716.77 | E16: 9.96 | F16: 15.21 | G16: 84.54 | H16: 1.51 | I16: 912.69 | J16: 15.5 | K16: 1.31 | L16: 54.28 | M16: 481.59 | N16: 552.68 | O16: 1465.37
B17: 蓄積 | C17: 11760 | D17: 57090 | E17: 741 | F17: 1230 | G17: 9612 | H17: 213 | I17: 80646 | J17: 603 | K17: 96 | L17: 1840 | M17: 16565 | N17: 19104 | O17: 99750
B18: 成長 | C18: 1238.6 | D18: 5400.3 | E18: 70.5 | F18: 101.5 | G18: 577.1 | H18: 17.6 | I18: 7405.6 | J18: 29.3 | K18: 9.7 | L18: 123.3 | M18: 1117.9 | N18: 1280.2 | O18: 8685.8
A19: 5 | B19: 面積 | C19: 146.04 | D19: 1103.27 | E19: 1.12 | F19: 63.04 | G19: 191.44 | H19: 29.58 | I19: 1534.49 | J19: 8.07 | K19: 17.04 | L19: 109.09 | M19: 1092.41 | N19: 1226.61 | O19: 2761.1
B20: 蓄積 | C20: 25605 | D20: 142947 | E20: 118 | F20: 8514 | G20: 27781 | H20: 4559 | I20: 209524 | J20: 446 | K20: 475 | L20: 5989 | M20: 46010 | N20: 52920 | O20: 262444
B21: 成長 | C21: 1789.3 | D21: 8802.6 | E21: 7.4 | F21: 447 | G21: 1334.1 | H21: 309.5 | I21: 12689.9 | J21: 16.5 | K21: 37.5 | L21: 304.6 | M21: 2392.7 | N21: 2751.3 | O21: 15441.2
A22: 6 | B22: 面積 | C22: 320.98 | D22: 1920.31 | E22: 1.49 | F22: 81.63 | G22: 302.24 | H22: 53.53 | I22: 2680.18 | J22: 20.49 | K22: 3.9 | L22: 188.62 | M22: 2498.4 | N22: 2711.41 | O22: 5391.59
B23: 蓄積 | C23: 83146 | D23: 311424 | E23: 1026 | F23: 13690 | G23: 52206 | H23: 10037 | I23: 471529 | J23: 1516 | K23: 841 | L23: 11720 | M23: 122981 | N23: 137058 | O23: 608587
B24: 成長 | C24: 3930.5 | D24: 14050.1 | E24: 56 | F24: 522.9 | G24: 1362.5 | H24: 524.7 | I24: 20446.7 | J24: 37.7 | K24: 56.1 | L24: 470.9 | M24: 4938.4 | N24: 5503.1 | O24: 25949.8
A25: 7 | B25: 面積 | C25: 772.86 | D25: 3338.33 | E25: 2.82 | F25: 270.91 | G25: 728.9 | H25: 94.36 | I25: 5208.18 | J25: 58.47 | K25: 19.13 | L25: 389.62 | M25: 4239.5 | N25: 4706.72 | O25: 9914.9
B26: 蓄積 | C26: 225317 | D26: 596611 | E26: 479 | F26: 39095 | G26: 147787 | H26: 16466 | I26: 1025755 | J26: 4436 | K26: 1416 | L26: 24621 | M26: 241382 | N26: 271855 | O26: 1297610
B27: 成長 | C27: 8443.3 | D27: 21442.8 | E27: 16.3 | F27: 1051.9 | G27: 3448.8 | H27: 733.8 | I27: 35136.9 | J27: 70.2 | K27: 81.5 | L27: 774.2 | M27: 7543.3 | N27: 8469.2 | O27: 43606.1
A28: 8 | B28: 面積 | C28: 1647.91 | D28: 4966.14 | E28: 4.76 | F28: 337.42 | G28: 1323.67 | H28: 267.52 | I28: 8547.42 | J28: 68.94 | K28: 10.84 | L28: 600.37 | M28: 4471.38 | N28: 5151.53 | O28: 13698.95
B29: 蓄積 | C29: 547475 | D29: 967975 | E29: 723 | F29: 59208 | G29: 282361 | H29: 47946 | I29: 1905688 | J29: 5361 | K29: 570 | L29: 42044 | M29: 295255 | N29: 343230 | O29: 2248918
B30: 成長 | C30: 17226 | D30: 27058.4 | E30: 23.5 | F30: 1241.8 | G30: 6219.2 | H30: 1803.3 | I30: 53572.2 | J30: 52.2 | K30: 24.3 | L30: 1259.2 | M30: 8840.1 | N30: 10175.8 | O30: 63748
A31: 9 | B31: 面積 | C31: 2976.6 | D31: 7093.44 | E31: 4 | F31: 1151.48 | G31: 2557.9 | H31: 484.84 | I31: 14268.26 | J31: 85.62 | K31: 28.75 | L31: 494.98 | M31: 4729.94 | N31: 5339.29 | O31: 19607.55
B32: 蓄積 | C32: 1096084 | D32: 1448743 | E32: 819 | F32: 213613 | G32: 584418 | H32: 56065 | I32: 3399742 | J32: 7105 | K32: 1697 | L32: 39395 | M32: 357197 | N32: 405394 | O32: 3805136
B33: 成長 | C33: 24289.5 | D33: 33700 | E33: 18.3 | F33: 3286.2 | G33: 10949.7 | H33: 1829.9 | I33: 74073.6 | J33: 49.1 | K33: 60 | L33: 1083.2 | M33: 9770.9 | N33: 10963.2 | O33: 85036.8
A34: 10 | B34: 面積 | C34: 4154.29 | D34: 7602.98 | E34: 14.76 | F34: 3711.59 | G34: 6330.99 | H34: 688.78 | I34: 22503.39 | J34: 84.22 | K34: 79.98 | L34: 432.81 | M34: 6238.33 | N34: 6835.34 | O34: 29338.73
B35: 蓄積 | C35: 1631134 | D35: 1685114 | E35: 3331 | F35: 734706 | G35: 1582324 | H35: 84041 | I35: 5720650 | J35: 7227 | K35: 4638 | L35: 38579 | M35: 519071 | N35: 569515 | O35: 6290165
B36: 成長 | C36: 27190.9 | D36: 31875 | E36: 63.4 | F36: 9716.3 | G36: 24161 | H36: 2366.7 | I36: 95373.3 | J36: 20.5 | K36: 141.2 | L36: 962 | M36: 12969 | N36: 14092.7 | O36: 109466
A37: 11 | B37: 面積 | C37: 6378.93 | D37: 6415.31 | E37: 34.56 | F37: 10602.87 | G37: 13689.93 | H37: 652.31 | I37: 37773.91 | J37: 54.68 | K37: 237.25 | L37: 607.03 | M37: 10651.38 | N37: 11550.34 | O37: 49324.25
B38: 蓄積 | C38: 2651061 | D38: 1545213 | E38: 7545 | F38: 2231404 | G38: 3625570 | H38: 91947 | I38: 10152740 | J38: 4871 | K38: 16041 | L38: 59907 | M38: 934188 | N38: 1015007 | O38: 11167747 | P38: 伐 跡 | R38: 755.76
B39: 成長 | C39: 33370.4 | D39: 25657.2 | E39: 125.6 | F39: 24957.2 | G39: 48107.3 | H39: 2108.9 | I39: 134326.6 | J39: 14.5 | K39: 415.4 | L39: 1179.1 | M39: 18020.2 | N39: 19629.2 | O39: 153955.8 | P39: 未立木地 | R39: 6022.91
A40: 12 | B40: 面積 | C40: 8802.3 | D40: 3492.82 | E40: 35.34 | F40: 17132.12 | G40: 31277.31 | H40: 384.49 | I40: 61124.38 | J40: 107.51 | K40: 220.87 | L40: 974.56 | M40: 15653.03 | N40: 16955.97 | O40: 78080.35 | P40: 岩石地 | R40: 4358.21
B41: 蓄積 | C41: 3827864 | D41: 910972 | E41: 9647 | F41: 3791699 | G41: 8651941 | H41: 55459 | I41: 17247582 | J41: 9409 | K41: 18811 | L41: 100263 | M41: 1514226 | N41: 1642709 | O41: 18890291 | P41: 崩壊地 | R41: 4434.65
B42: 成長 | C42: 43496.6 | D42: 12566.5 | E42: 145.9 | F42: 37005.6 | G42: 100859.8 | H42: 1083.6 | I42: 195158 | J42: 15 | K42: 433.5 | L42: 1890 | M42: 28438.2 | N42: 30776.7 | O42: 225934.7 | P42: はげ山 | R42: 110.27
A43: 13 | B43: 面積 | C43: 9558.42 | D43: 2919.78 | E43: 95.93 | F43: 14181.07 | G43: 47546.45 | H43: 918.24 | I43: 75219.89 | J43: 377.56 | K43: 523.09 | L43: 2166 | M43: 27936.99 | N43: 31003.64 | O43: 106223.53 | P43: 施設敷 | R43: 1622.3
B44: 蓄積 | C44: 4212907 | D44: 776958 | E44: 25395 | F44: 3216531 | G44: 13607611 | H44: 135154 | I44: 21974556 | J44: 33758 | K44: 42252 | L44: 238715 | M44: 2961277 | N44: 3276002 | O44: 25250558 | P44: 林地開発 | R44: 308.06
B45: 成長 | C45: 46714.3 | D45: 10442 | E45: 373.1 | F45: 30343.1 | G45: 151343.9 | H45: 2544.5 | I45: 241760.9 | J45: 114.8 | K45: 951.2 | L45: 3640.8 | M45: 46637.5 | N45: 51344.3 | O45: 293105.2 | P45: 計 | R45: 17612.16
A46: 14 | B46: 面積 | C46: 7463.62 | D46: 2143.57 | E46: 101.46 | F46: 10600.64 | G46: 41110.29 | H46: 560.83 | I46: 61980.41 | J46: 802.54 | K46: 248.3 | L46: 3545.03 | M46: 41566.37 | N46: 46162.24 | O46: 108142.65 | P46: 竹 林 | R46: 1514.77
B47: 蓄積 | C47: 3390380 | D47: 593183 | E47: 28032 | F47: 2504164 | G47: 12303298 | H47: 94717 | I47: 18913774 | J47: 73054 | K47: 25219 | L47: 415744 | M47: 4678876 | N47: 5192893 | O47: 24106667 | P47: 更新 困難地 | Q47: 面積 | R47: 507.76
B48: 成長 | C48: 30626.8 | D48: 7196.3 | E48: 359.7 | F48: 19821.3 | G48: 116069.5 | H48: 1587.6 | I48: 175661.2 | J48: 176.9 | K48: 481.2 | L48: 4659 | M48: 53930.3 | N48: 59247.4 | O48: 234908.6 | Q48: 蓄積 | R48: 93999
A49: 15 以上 | B49: 面積 | C49: 12955.05 | D49: 8826.23 | E49: 733.9 | F49: 32586.92 | G49: 31668.83 | H49: 11121.64 | I49: 97892.57 | J49: 816.37 | K49: 4738.71 | L49: 8511.49 | M49: 128735.21 | N49: 142801.78 | O49: 240694.35 | Q49: 成長 | R49: 168.3
B50: 蓄積 | C50: 6484182 | D50: 2652680 | E50: 222203 | F50: 8275408 | G50: 9687352 | H50: 2489123 | I50: 29810948 | J50: 75970 | K50: 626353 | L50: 1042059 | M50: 15117578 | N50: 16861960 | O50: 46672908
B51: 成長 | C51: 27576.3 | D51: 7513 | E51: 452.9 | F51: 36067.6 | G51: 49687 | H51: 11164.3 | I51: 132461.1 | J51: 166 | K51: 3138.1 | L51: 6241.4 | M51: 73412.9 | N51: 82958.4 | O51: 215419.5 | P51: 総 合 計
A52: 計 | B52: 面積 | C52: 55308.9 | D52: 50933.42 | E52: 1043.05 | F52: 90766.36 | G52: 178271.86 | H52: 15263.93 | I52: 391587.52 | J52: 2501.42 | K52: 6138.82 | L52: 18257.65 | M52: 249747.31 | N52: 276645.2 | O52: 668232.72 | P52: 面 積 | R52: 687867.41
B53: 蓄積 | C53: 24188593 | D53: 11700507 | E53: 300167 | F53: 21089559 | G53: 50572011 | H53: 3085758 | I53: 110936595 | J53: 223776 | K53: 738437 | L53: 2022511 | M53: 26824038 | N53: 29808762 | O53: 140745357 | P53: 蓄 積 | R53: 140839356
B54: 成長 | C54: 266237.3 | D54: 208081.6 | E54: 1733.4 | F54: 164602.3 | G54: 514972.9 | H54: 26078.4 | I54: 1181705.9 | J54: 768.5 | K54: 5835.6 | L54: 22772.9 | M54: 270130.1 | N54: 299507.1 | O54: 1481213 | P54: 成長量 | R54: 1481381.3

Sheet 佐久
A1: 第4表 地域振興局別・資源構成表
A3: 佐久地域振興局 | O3: 単位 面積 : ha、蓄積 成長量 : ㎥
B4: 樹種 | C4: 針 葉 樹 | J4: 広 葉 樹 | O4: 計
C5: ス ギ | D5: ヒ ノ キ | E5: サ ワ ラ | F5: ア カ マ ツ | G5: カ ラ マ ツ | H5: そ の 他 針 | I5: 小 計 | J5: ク ヌ ギ | K5: ブ ナ | L5: ナ ラ | M5: そ の 他 広 | N5: 小 計
A6: 齢級
A7: 1 | B7: 面積 | D7: 6.68 | F7: 2.16 | G7: 594.95 | I7: 603.79 | L7: 10.29 | M7: 108.84 | N7: 119.13 | O7: 722.92
B8: 蓄積 | D8: 0 | F8: 0 | G8: 0 | I8: 0 | L8: 0 | M8: 0 | N8: 0 | O8: 0
B9: 成長 | D9: 0 | F9: 0 | G9: 0 | I9: 0 | L9: 0 | M9: 0 | N9: 0 | O9: 0
A10: 2 | B10: 面積 | C10: 0.09 | D10: 13.79 | E10: 0.31 | F10: 1.08 | G10: 207.84 | H10: 0.43 | I10: 223.54 | K10: 0.43 | L10: 12.38 | M10: 170.79 | N10: 183.6 | O10: 407.14
B11: 蓄積 | C11: 0 | D11: 0 | E11: 0 | F11: 0 | G11: 0 | H11: 0 | I11: 0 | K11: 0 | L11: 163 | M11: 2178 | N11: 2341 | O11: 2341
B12: 成長 | C12: 0 | D12: 0 | E12: 0 | F12: 0 | G12: 0 | H12: 0 | I12: 0 | K12: 0 | L12: 23.7 | M12: 313.5 | N12: 337.2 | O12: 337.2
A13: 3 | B13: 面積 | C13: 0.01 | D13: 15.25 | F13: 0.43 | G13: 34.54 | I13: 50.23 | L13: 12.29 | M13: 105.55 | N13: 117.84 | O13: 168.07
B14: 蓄積 | C14: 1 | D14: 651 | F14: 24 | G14: 3895 | H14: 13 | I14: 4584 | L14: 281 | M14: 2629 | N14: 2910 | O14: 7494
B15: 成長 | C15: 0.2 | D15: 143 | F15: 3.2 | G15: 303.6 | H15: 1.7 | I15: 451.7 | L15: 24 | M15: 225.5 | N15: 249.5 | O15: 701.2
A16: 4 | B16: 面積 | C16: 0.2 | D16: 32.78 | E16: 0.4 | F16: 0.84 | G16: 44.89 | I16: 79.11 | J16: 0.21 | L16: 12.99 | M16: 91.98 | N16: 105.18 | O16: 184.29
B17: 蓄積 | C17: 34 | D17: 3398 | E17: 21 | F17: 82 | G17: 5087 | H17: 106 | I17: 8728 | J17: 8 | L17: 397 | M17: 3364 | N17: 3769 | O17: 12497
B18: 成長 | C18: 2.8 | D18: 360.6 | E18: 2.4 | F18: 6.8 | G18: 302 | H18: 8.8 | I18: 683.4 | J18: 0.5 | L18: 27.3 | M18: 227.3 | N18: 255.1 | O18: 938.5
A19: 5 | B19: 面積 | C19: 2.27 | D19: 50.89 | E19: 0.26 | F19: 9.67 | G19: 22.91 | H19: 2.13 | I19: 88.13 | J19: 0.66 | L19: 16.97 | M19: 162.2 | N19: 179.83 | O19: 267.96
B20: 蓄積 | C20: 504 | D20: 7115 | E20: 31 | F20: 1147 | G20: 3944 | H20: 599 | I20: 13340 | J20: 27 | L20: 853 | M20: 7141 | N20: 8021 | O20: 21361
B21: 成長 | C21: 25.5 | D21: 505.6 | E21: 2.2 | F21: 57.7 | G21: 181.9 | H21: 42.4 | I21: 815.3 | J21: 1.5 | L21: 43.8 | M21: 373.7 | N21: 419 | O21: 1234.3
A22: 6 | B22: 面積 | C22: 2.69 | D22: 64.72 | E22: 0.95 | F22: 15.83 | G22: 74.09 | H22: 11.74 | I22: 170.02 | J22: 1.22 | L22: 32.89 | M22: 463.85 | N22: 497.96 | O22: 667.98
B23: 蓄積 | C23: 1240 | D23: 17559 | E23: 966 | F23: 2222 | G23: 15191 | H23: 4128 | I23: 41306 | J23: 63 | L23: 2189 | M23: 24226 | N23: 26478 | O23: 67784
B24: 成長 | C24: 44.7 | D24: 970.2 | E24: 53.2 | F24: 84.2 | G24: 349.3 | H24: 218.5 | I24: 1720.1 | J24: 2.6 | L24: 89 | M24: 987.3 | N24: 1078.9 | O24: 2799
A25: 7 | B25: 面積 | C25: 2.09 | D25: 162.6 | F25: 14.33 | G25: 263.76 | H25: 21.58 | I25: 464.36 | J25: 1.57 | K25: 0.48 | L25: 35.64 | M25: 448.33 | N25: 486.02 | O25: 950.38
B26: 蓄積 | C26: 891 | D26: 35761 | F26: 2157 | G26: 58009 | H26: 5978 | I26: 102796 | J26: 93 | K26: 21 | L26: 2177 | M26: 26427 | N26: 28718 | O26: 131514
B27: 成長 | C27: 25.2 | D27: 1613.4 | F27: 54.7 | G27: 1286.8 | H27: 259.9 | I27: 3240 | J27: 3.1 | K27: 1.2 | L27: 68 | M27: 821.2 | N27: 893.5 | O27: 4133.5
A28: 8 | B28: 面積 | C28: 8.16 | D28: 147.63 | E28: 0.89 | F28: 54.81 | G28: 392.37 | H28: 18.12 | I28: 621.98 | J28: 0.25 | L28: 78.72 | M28: 392.56 | N28: 471.53 | O28: 1093.51
B29: 蓄積 | C29: 2766 | D29: 43930 | E29: 186 | F29: 9621 | G29: 92285 | H29: 15481 | I29: 164269 | J29: 19 | L29: 5565 | M29: 27321 | N29: 32905 | O29: 197174
B30: 成長 | C30: 64 | D30: 1627.5 | E30: 6.8 | F30: 194.6 | G30: 1937.9 | H30: 593 | I30: 4423.8 | J30: 0.6 | L30: 167.8 | M30: 824.3 | N30: 992.7 | O30: 5416.5
A31: 9 | B31: 面積 | C31: 16.78 | D31: 271.01 | E31: 0.35 | F31: 183.13 | G31: 949.59 | H31: 40.36 | I31: 1461.22 | J31: 0.37 | L31: 51.05 | M31: 527.11 | N31: 578.53 | O31: 2039.75
B32: 蓄積 | C32: 5507 | D32: 70366 | E32: 88 | F32: 35229 | G32: 255097 | H32: 6860 | I32: 373147 | J32: 31 | L32: 4028 | M32: 41704 | N32: 45763 | O32: 418910
B33: 成長 | C33: 102.8 | D33: 2127.2 | E33: 2.6 | F33: 533.4 | G33: 4648.6 | H33: 242.3 | I33: 7656.9 | J33: 0.8 | L33: 112.1 | M33: 1162.4 | N33: 1275.3 | O33: 8932.2
A34: 10 | B34: 面積 | C34: 18.25 | D34: 68.19 | E34: 0.91 | F34: 391.2 | G34: 2036.11 | H34: 38.86 | I34: 2553.52 | J34: 1.31 | L34: 63.95 | M34: 483.43 | N34: 548.69 | O34: 3102.21
B35: 蓄積 | C35: 7306 | D35: 20702 | E35: 255 | F35: 81777 | G35: 595059 | H35: 7716 | I35: 712815 | J35: 121 | L35: 5819 | M35: 43104 | N35: 49044 | O35: 761859
B36: 成長 | C36: 109.4 | D36: 599.9 | E36: 7.5 | F36: 1065.9 | G36: 8972 | H36: 226.1 | I36: 10980.8 | J36: 3.1 | L36: 147.9 | M36: 1091.5 | N36: 1242.5 | O36: 12223.3
A37: 11 | B37: 面積 | C37: 65.79 | D37: 54.22 | E37: 0.54 | F37: 760.14 | G37: 4127.39 | H37: 91.99 | I37: 5100.07 | J37: 1.39 | L37: 112.88 | M37: 711.88 | N37: 826.15 | O37: 5926.22
B38: 蓄積 | C38: 26725 | D38: 17726 | E38: 217 | F38: 164146 | G38: 1249203 | H38: 18854 | I38: 1476871 | J38: 136 | L38: 11188 | M38: 67257 | N38: 78581 | O38: 1555452 | P38: 伐 跡 | R38: 217.43
B39: 成長 | C39: 347.8 | D39: 426.2 | E39: 5.1 | F39: 1819.7 | G39: 15041 | H39: 448.6 | I39: 18088.4 | J39: 2.6 | L39: 221.3 | M39: 1315.4 | N39: 1539.3 | O39: 19627.7 | P39: 未立木地 | R39: 391.75
A40: 12 | B40: 面積 | C40: 86.08 | D40: 8.42 | E40: 0.46 | F40: 1023.12 | G40: 6628.69 | H40: 28.11 | I40: 7774.88 | J40: 1.94 | L40: 177.42 | M40: 1200.27 | N40: 1379.63 | O40: 9154.51 | P40: 岩石地 | R40: 565.01
B41: 蓄積 | C41: 36130 | D41: 2874 | E41: 171 | F41: 234472 | G41: 2129082 | H41: 6691 | I41: 2409420 | J41: 179 | L41: 18543 | M41: 120418 | N41: 139140 | O41: 2548560 | P41: 崩壊地 | R41: 184.77
B42: 成長 | C42: 399.9 | D42: 61.2 | E42: 3.5 | F42: 2131 | G42: 19592.9 | H42: 137.2 | I42: 22325.7 | J42: 3.2 | L42: 350.1 | M42: 2241.2 | N42: 2594.5 | O42: 24920.2 | P42: はげ山 | R42: 1.86
A43: 13 | B43: 面積 | C43: 141.9 | D43: 7.72 | E43: 13.52 | F43: 843.76 | G43: 11042.36 | H43: 43.66 | I43: 12092.92 | J43: 6.94 | L43: 446.04 | M43: 3105.14 | N43: 3558.12 | O43: 15651.04 | P43: 施設敷 | R43: 298.22
B44: 蓄積 | C44: 61700 | D44: 2756 | E44: 4167 | F44: 195962 | G44: 3643893 | H44: 11624 | I44: 3920102 | J44: 744 | L44: 48727 | M44: 337978 | N44: 387449 | O44: 4307551 | P44: 林地開発
B45: 成長 | C45: 667.8 | D45: 56.2 | E45: 81.2 | F45: 1723.6 | G45: 31724.8 | H45: 221.5 | I45: 34475.1 | J45: 11.2 | L45: 711.9 | M45: 4832.7 | N45: 5555.8 | O45: 40030.9 | P45: 計 | R45: =SUM(R38:R44) -> 1659.04
A46: 14 | B46: 面積 | C46: 23.62 | D46: 5.24 | E46: 7.79 | F46: 511.18 | G46: 9247.82 | H46: 58.09 | I46: 9853.74 | J46: 7.73 | L46: 613.39 | M46: 4419.34 | N46: 5040.46 | O46: 14894.2 | P46: 竹 林 | R46: 29.79
B47: 蓄積 | C47: 10565 | D47: 2005 | E47: 3114 | F47: 122452 | G47: 3156060 | H47: 15853 | I47: 3310049 | J47: 891 | L47: 72050 | M47: 501308 | N47: 574249 | O47: 3884298 | P47: 更新 困難地 | Q47: 面積 | R47: 120.72
B48: 成長 | C48: 96.3 | D48: 32.9 | E48: 54.2 | F48: 874.3 | G48: 22002.7 | H48: 272.2 | I48: 23332.6 | J48: 8.7 | L48: 762.9 | M48: 5313.9 | N48: 6085.5 | O48: 29418.1 | Q48: 蓄積 | R48: 20843
A49: 15 以上 | B49: 面積 | C49: 76.4 | D49: 120.13 | E49: 62.79 | F49: 1819.21 | G49: 6684.29 | H49: 1162.41 | I49: 9925.23 | J49: 10.24 | L49: 864.37 | M49: 8653.97 | N49: 9528.58 | O49: 19453.81 | Q49: 成長 | R49: 84.9
B50: 蓄積 | C50: 36653 | D50: 56691 | E50: 26475 | F50: 457552 | G50: 2271165 | H50: 437966 | I50: 3286502 | J50: 1282 | L50: 106093 | M50: 1025699 | N50: 1133074 | O50: 4419576
B51: 成長 | C51: 28.5 | D51: 67.2 | E51: 76.6 | F51: 1494.2 | G51: 7597 | H51: 2297.7 | I51: 11561.2 | J51: 8.6 | L51: 562.5 | M51: 4320.5 | N51: 4891.6 | O51: 16452.8 | P51: 総 合 計
A52: 計 | B52: 面積 | C52: =SUM(C7,C10,C13,C16,C19,C22,C25,C28,C31,C34,C37,C40,C43,C46,C49) -> 444.33 | D52: =SUM(D7,D10,D13,D16,D19,D22,D25,D28,D31,D34,D37,D40,D43,D46,D49) -> 1029.27 | E52: 89.17 | F52: 5630.89 | G52: 42351.6 | H52: 1517.48 | I52: 51062.74 | J52: =SUM(J7,J10,J13,J16,J19,J22,J25,J28,J31,J34,J37,J40,J43,J46,J49) -> 33.83 | K52: =SUM(K7,K10,K13,K16,K19,K22,K25,K28,K31,K34,K37,K40,K43,K46,K49) -> 0.91 | L52: =SUM(L7,L10,L13,L16,L19,L22,L25,L28,L31,L34,L37,L40,L43,L46,L49) -> 2541.27 | M52: =SUM(M7,M10,M13,M16,M19,M22,M25,M28,M31,M34,M37,M40,M43,M46,M49) -> 21045.24 | N52: =SUM(J52:M52) -> 23621.25 | O52: =SUM(N52,I52) -> 74683.99 | P52: 面 積 | R52: =SUM(O52,R45,R47,R46) -> 76493.54
B53: 蓄積 | C53: 190022 | D53: 281534 | E53: 35691 | F53: 1306843 | G53: 13477970 | H53: 531869 | I53: 15823929 | J53: =SUM(J8,J11,J14,J17,J20,J23,J26,J29,J32,J35,J38,J41,J44,J47,J50) -> 3594 | K53: 21 | L53: 278073 | M53: 2230754 | N53: =SUM(J53:M53) -> 2512442 | O53: =SUM(N53,I53) -> 18336371 | P53: 蓄 積 | R53: =O53+R48 -> 18357214
B54: 成長 | C54: 1914.9 | D54: 8591.1 | E54: 295.3 | F54: 10043.3 | G54: 113940.5 | H54: 4969.9 | I54: 139755 | J54: 46.5 | K54: 1.2 | L54: 3312.3 | M54: 24050.4 | N54: =SUM(J54:M54) -> 27410.4 | O54: =SUM(N54,I54) -> 167165.4 | P54: 成長量 | R54: =O54+R49 -> 167250.3

Sheet 上田
A1: 第4表 地域振興局別・資源構成表
A3: 上田地域振興局 | O3: 単位 面積 : ha、蓄積 成長量 : ㎥
B4: 樹種 | C4: 針 葉 樹 | J4: 広 葉 樹 | O4: 計
C5: ス ギ | D5: ヒ ノ キ | E5: サ ワ ラ | F5: ア カ マ ツ | G5: カ ラ マ ツ | H5: そ の 他 針 | I5: 小 計 | J5: ク ヌ ギ | K5: ブ ナ | L5: ナ ラ | M5: そ の 他 広 | N5: 小 計
A6: 齢級
A7: 1 | B7: 面積 | C7: 0.07 | D7: 0.03 | F7: 0.21 | G7: 214.75 | I7: 215.06 | K7: 0.1 | L7: 8.59 | M7: 50.74 | N7: 59.43 | O7: 274.49
B8: 蓄積 | C8: 0 | D8: 0 | F8: 0 | G8: 0 | I8: 0 | K8: 0 | L8: 0 | M8: 0 | N8: 0 | O8: 0
B9: 成長 | C9: 0 | D9: 0 | F9: 0 | G9: 0 | I9: 0 | K9: 0 | L9: 0 | M9: 0 | N9: 0 | O9: 0
A10: 2 | B10: 面積 | D10: 11.65 | G10: 61.48 | I10: 73.13 | L10: 12.15 | M10: 190.3 | N10: 202.45 | O10: 275.58
B11: 蓄積 | D11: 0 | G11: 0 | I11: 0 | L11: 196 | M11: 2471 | N11: 2667 | O11: 2667
B12: 成長 | D12: 0 | G12: 0 | I12: 0 | L12: 27.7 | M12: 355.4 | N12: 383.1 | O12: 383.1
A13: 3 | B13: 面積 | D13: 5.21 | F13: 0.51 | G13: 2.75 | I13: 8.47 | L13: 3.97 | M13: 42.14 | N13: 46.11 | O13: 54.58
B14: 蓄積 | D14: 230 | F14: 25 | G14: 169 | I14: 424 | L14: 86 | M14: 930 | N14: 1016 | O14: 1440
B15: 成長 | D15: 51.1 | F15: 3.4 | G15: 15.6 | I15: 70.1 | L15: 7.2 | M15: 79.7 | N15: 86.9 | O15: 157
A16: 4 | B16: 面積 | C16: 0.54 | D16: 58.12 | F16: 1.49 | G16: 17.76 | I16: 77.91 | J16: 1.95 | L16: 3.12 | M16: 63.79 | N16: 68.86 | O16: 146.77
B17: 蓄積 | C17: 90 | D17: 4513 | F17: 142 | G17: 2528 | I17: 7273 | J17: 62 | L17: 220 | M17: 2210 | N17: 2492 | O17: 9765
B18: 成長 | C18: 7.3 | D18: 475.8 | F18: 11.8 | G18: 148.9 | I18: 643.8 | J18: 4.1 | L18: 15.5 | M18: 150.2 | N18: 169.8 | O18: 813.6
A19: 5 | B19: 面積 | C19: 2.34 | D19: 81.3 | F19: 8.63 | G19: 51.06 | H19: 0.34 | I19: 143.67 | J19: 1.91 | K19: 3.02 | L19: 37.42 | M19: 120.92 | N19: 163.27 | O19: 306.94
B20: 蓄積 | C20: 519 | D20: 10612 | F20: 769 | G20: 8472 | H20: 31 | I20: 20403 | J20: 81 | K20: 72 | L20: 1937 | M20: 5260 | N20: 7350 | O20: 27753
B21: 成長 | C21: 26.2 | D21: 753.8 | F21: 43.3 | G21: 390.1 | H21: 2.2 | I21: 1215.6 | J21: 4.3 | K21: 5.6 | L21: 99.6 | M21: 272.3 | N21: 381.8 | O21: 1597.4
A22: 6 | B22: 面積 | C22: 11.56 | D22: 70.91 | F22: 24.65 | G22: 51.21 | H22: 1.8 | I22: 160.13 | J22: 0.36 | L22: 40.82 | M22: 203.23 | N22: 244.41 | O22: 404.54
B23: 蓄積 | C23: 3440 | D23: 17688 | F23: 3602 | G23: 11222 | H23: 186 | I23: 36138 | J23: 108 | K23: 628 | L23: 2248 | M23: 11072 | N23: 14056 | O23: 50194
B24: 成長 | C24: 123.5 | D24: 976.8 | F24: 133.3 | G24: 257.9 | H24: 9.8 | I24: 1501.3 | J24: 4.4 | K24: 42.1 | L24: 92 | M24: 452.7 | N24: 591.2 | O24: 2092.5
A25: 7 | B25: 面積 | C25: 25.35 | D25: 265.49 | F25: 26.77 | G25: 153.17 | H25: 2.78 | I25: 473.56 | J25: 3.46 | L25: 89.49 | M25: 480.04 | N25: 572.99 | O25: 1046.55
B26: 蓄積 | C26: 15239 | D26: 57386 | F26: 4476 | G26: 35643 | H26: 497 | I26: 113241 | J26: 204 | K26: 801 | L26: 5857 | M26: 29268 | N26: 36130 | O26: 149371
B27: 成長 | C27: 423.8 | D27: 2582.3 | F27: 107.8 | G27: 783.3 | H27: 21.3 | I27: 3918.5 | J27: 6.3 | K27: 46.5 | L27: 182.5 | M27: 907.7 | N27: 1143 | O27: 5061.5
A28: 8 | B28: 面積 | C28: 65.67 | D28: 296.01 | F28: 66.4 | G28: 189.09 | H28: 39.85 | I28: 657.02 | J28: 3.28 | L28: 95.04 | M28: 402.92 | N28: 501.24 | O28: 1158.26
B29: 蓄積 | C29: 22182 | D29: 75799 | F29: 12074 | G29: 48448 | H29: 6520 | I29: 165023 | J29: 229 | L29: 6638 | M29: 27789 | N29: 34656 | O29: 199679
B30: 成長 | C30: 510.1 | D30: 2807.4 | F30: 244.4 | G30: 1017.2 | H30: 247.8 | I30: 4826.9 | J30: 6.9 | L30: 200.5 | M30: 838.3 | N30: 1045.7 | O30: 5872.6
A31: 9 | B31: 面積 | C31: 93.81 | D31: 414.05 | F31: 155.74 | G31: 144.97 | H31: 3.09 | I31: 811.66 | J31: 8.3 | L31: 67.96 | M31: 475.98 | N31: 552.24 | O31: 1363.9
B32: 蓄積 | C32: 35163 | D32: 109057 | F32: 30735 | G32: 40766 | H32: 3711 | I32: 219432 | J32: 656 | L32: 5372 | M32: 38635 | N32: 44663 | O32: 264095
B33: 成長 | C33: 633.4 | D33: 3285.1 | F33: 463.2 | G33: 733.3 | H33: 130.1 | I33: 5245.1 | J33: 18.9 | L33: 150.9 | M33: 1082.5 | N33: 1252.3 | O33: 6497.4
A34: 10 | B34: 面積 | C34: 160.87 | D34: 258.46 | F34: 437.05 | G34: 284.46 | H34: 13.7 | I34: 1154.54 | J34: 0.79 | L34: 47.87 | M34: 320.72 | N34: 369.38 | O34: 1523.92
B35: 蓄積 | C35: 63727 | D35: 75035 | F35: 91157 | G35: 86015 | H35: 2824 | I35: 318758 | J35: 72 | L35: 4376 | M35: 28649 | N35: 33097 | O35: 351855
B36: 成長 | C36: 955.9 | D36: 2171.6 | F36: 1186.6 | G36: 1291.3 | H36: 83.9 | I36: 5689.3 | J36: 1.8 | L36: 111.3 | M36: 733.5 | N36: 846.6 | O36: 6535.9
A37: 11 | B37: 面積 | C37: 251.79 | D37: 155.67 | E37: 0.23 | F37: 1059.04 | G37: 708.8 | H37: 19.28 | I37: 2194.81 | J37: 5.75 | L37: 48.82 | M37: 409.04 | N37: 463.61 | O37: 2658.42
B38: 蓄積 | C38: 105757 | D38: 51825 | E38: 79 | F38: 232072 | G38: 222015 | H38: 4029 | I38: 615777 | J38: 586 | L38: 4795 | M38: 39349 | N38: 44730 | O38: 660507 | P38: 伐 跡 | R38: 115.6
B39: 成長 | C39: 1377.8 | D39: 1243.1 | E39: 1.9 | F39: 2560.4 | G39: 2673.8 | H39: 95.3 | I39: 7952.3 | J39: 11.9 | L39: 95 | M39: 776.4 | N39: 883.3 | O39: 8835.6 | P39: 未立木地 | R39: 167.23
A40: 12 | B40: 面積 | C40: 260.64 | D40: 65.5 | E40: 3.73 | F40: 1884.66 | G40: 2147.45 | H40: 17.26 | I40: 4379.24 | J40: 5.61 | L40: 61.45 | M40: 680.79 | N40: 747.85 | O40: 5127.09 | P40: 岩石地 | R40: 173.35
B41: 蓄積 | C41: 114952 | D41: 23561 | E41: 1318 | F41: 434491 | G41: 714532 | H41: 4626 | I41: 1293480 | J41: 608 | L41: 6576 | M41: 71770 | N41: 78954 | O41: 1372434 | P41: 崩壊地 | R41: 66.13
B42: 成長 | C42: 1264.1 | D42: 496.5 | E42: 27.9 | F42: 3922 | G42: 6470.3 | H42: 93.1 | I42: 12273.9 | J42: 11.8 | L42: 125.9 | M42: 1342.9 | N42: 1480.6 | O42: 13754.5 | P42: はげ山 | R42: 1.94
A43: 13 | B43: 面積 | C43: 393.88 | D43: 17.09 | E43: 1.83 | F43: 1627.76 | G43: 3718.67 | H43: 27.95 | I43: 5787.18 | J43: 61.35 | L43: 139.9 | M43: 1579.1 | N43: 1780.35 | O43: 7567.53 | P43: 施設敷 | R43: 362.17
B44: 蓄積 | C44: 179590 | D44: 6552 | E44: 716 | F44: 383189 | G44: 1275915 | H44: 6973 | I44: 1852935 | J44: 6585 | L44: 16376 | M44: 183085 | N44: 206046 | O44: 2058981 | P44: 林地開発 | R44: 20.12
B45: 成長 | C45: 1896.8 | D45: 135.7 | E45: 14.7 | F45: 3380.5 | G45: 10951.1 | H45: 138.6 | I45: 16517.4 | J45: 103.5 | L45: 234.7 | M45: 2617.9 | N45: 2956.1 | O45: 19473.5 | P45: 計 | R45: =SUM(R38:R44) -> 906.54
A46: 14 | B46: 面積 | C46: 311.21 | D46: 23.86 | E46: 1.55 | F46: 695.41 | G46: 2779.36 | H46: 12.9 | I46: 3824.29 | J46: 129.89 | L46: 257.48 | M46: 2924.87 | N46: 3312.24 | O46: 7136.53 | P46: 竹 林 | R46: 109.47
B47: 蓄積 | C47: 146132 | D47: 10089 | E47: 674 | F47: 170776 | G47: 976136 | H47: 4045 | I47: 1307852 | J47: 14997 | L47: 31402 | M47: 347346 | N47: 393745 | O47: 1701597 | P47: 更新 困難地 | Q47: 面積 | R47: 226.77
B48: 成長 | C48: 1318.3 | D48: 166.5 | E48: 11.3 | F48: 1205.9 | G48: 6657 | H48: 68 | I48: 9427 | J48: 168.2 | L48: 326.3 | M48: 3569 | N48: 4063.5 | O48: 13490.5 | Q48: 蓄積 | R48: 38410
A49: 15 以上 | B49: 面積 | C49: 374.15 | D49: 153.59 | E49: 31.79 | F49: 2785.84 | G49: 1903.26 | H49: 62.22 | I49: 5310.85 | J49: 158.8 | K49: 4 | L49: 422.32 | M49: 4543.43 | N49: 5128.55 | O49: 10439.4 | Q49: 成長 | R49: 38.2
B50: 蓄積 | C50: 185786 | D50: 71998 | E50: 14664 | F50: 724593 | G50: 682121 | H50: 24876 | I50: 1704038 | J50: 19634 | K50: 758 | L50: 54487 | M50: 567268 | N50: 642147 | O50: 2346185
B51: 成長 | C51: 502.7 | D51: 129.9 | E51: 31.2 | F51: 2233.5 | G51: 2369.2 | H51: 235.7 | I51: 5502.2 | J51: 157.2 | K51: 0.4 | L51: 332.2 | M51: 3145.5 | N51: 3635.3 | O51: 9137.5 | P51: 総 合 計
A52: 計 | B52: 面積 | C52: =SUM(C7,C10,C13,C16,C19,C22,C25,C28,C31,C34,C37,C40,C43,C46,C49) -> 1951.88 | D52: 1876.94 | E52: 39.13 | F52: 8774.16 | G52: 12428.24 | H52: 201.17 | I52: 25271.52 | J52: =SUM(J7,J10,J13,J16,J19,J22,J25,J28,J31,J34,J37,J40,J43,J46,J49) -> 381.45 | K52: =SUM(K7,K10,K13,K16,K19,K22,K25,K28,K31,K34,K37,K40,K43,K46,K49) -> 7.12 | L52: =SUM(L7,L10,L13,L16,L19,L22,L25,L28,L31,L34,L37,L40,L43,L46,L49) -> 1336.4 | M52: =SUM(M7,M10,M13,M16,M19,M22,M25,M28,M31,M34,M37,M40,M43,M46,M49) -> 12488.01 | N52: =SUM(J52:M52) -> 14212.98 | O52: =SUM(N52,I52) -> 39484.5 | P52: 面 積 | R52: =SUM(O52,R45,R47,R46) -> 40727.28
B53: 蓄積 | C53: 872577 | D53: 514345 | E53: 17451 | F53: 2088101 | G53: 4103982 | H53: 58318 | I53: 7654774 | J53: =SUM(J8,J11,J14,J17,J20,J23,J26,J29,J32,J35,J38,J41,J44,J47,J50) -> 43822 | K53: 2259 | L53: 140566 | M53: 1355102 | N53: =SUM(J53:M53) -> 1541749 | O53: =SUM(N53,I53) -> 9196523 | P53: 蓄 積 | R53: =O53+R48 -> 9234933
B54: 成長 | C54: 9039.9 | D54: 15275.6 | E54: 87 | F54: 15496.1 | G54: 33759 | H54: 1125.8 | I54: 74783.4 | J54: 499.3 | K54: 94.6 | L54: 2001.3 | M54: 16324 | N54: =SUM(J54:M54) -> 18919.2 | O54: =SUM(N54,I54) -> 93702.6 | P54: 成長量 | R54: =O54+R49 -> 93740.8

Sheet 諏訪
A1: 第4表 地域振興局別・資源構成表
A3: 諏訪地域振興局 | O3: 単位 面積 : ha、蓄積 成長量 : ㎥
B4: 樹種 | C4: 針 葉 樹 | J4: 広 葉 樹 | O4: 計
C5: ス ギ | D5: ヒ ノ キ | E5: サ ワ ラ | F5: ア カ マ ツ | G5: カ ラ マ ツ | H5: そ の 他 針 | I5: 小 計 | J5: ク ヌ ギ | K5: ブ ナ | L5: ナ ラ | M5: そ の 他 広 | N5: 小 計
A6: 齢級
A7: 1 | B7: 面積 | D7: 3.15 | E7: 0.03 | F7: 14.16 | G7: 33.85 | I7: 51.19 | L7: 1.28 | M7: 1.6 | N7: 2.88 | O7: 54.07
B8: 蓄積 | D8: 0 | E8: 0 | F8: 0 | G8: 0 | I8: 0 | L8: 0 | M8: 0 | N8: 0 | O8: 0
B9: 成長 | D9: 0 | E9: 0 | F9: 0 | G9: 0 | I9: 0 | L9: 0 | M9: 0 | N9: 0 | O9: 0
A10: 2 | B10: 面積 | F10: 1.65 | G10: 13.07 | I10: 14.72 | L10: 3.56 | M10: 0.71 | N10: 4.27 | O10: 18.99
B11: 蓄積 | F11: 0 | G11: 0 | I11: 0 | L11: 22 | M11: 8 | N11: 30 | O11: 30
B12: 成長 | F12: 0 | G12: 0 | I12: 0 | L12: 2.8 | M12: 1 | N12: 3.8 | O12: 3.8
A13: 3 | B13: 面積 | C13: 0.14 | G13: 12.79 | I13: 12.93 | M13: 20.42 | N13: 20.42 | O13: 33.35
B14: 蓄積 | C14: 12 | G14: 718 | I14: 730 | M14: 391 | N14: 391 | O14: 1121
B15: 成長 | C15: 2.4 | G15: 42.7 | I15: 45.1 | M15: 35.3 | N15: 35.3 | O15: 80.4
A16: 4 | B16: 面積 | C16: 0.04 | D16: 0.87 | G16: 2.82 | I16: 3.73 | L16: 0.38 | M16: 8.78 | N16: 9.16 | O16: 12.89
B17: 蓄積 | C17: 5 | D17: 607 | E17: 76 | G17: 253 | H17: 19 | I17: 960 | L17: 11 | M17: 637 | N17: 648 | O17: 1608
B18: 成長 | C18: 0.4 | D18: 55.3 | E18: 7 | G18: 14.9 | H18: 1.5 | I18: 79.1 | L18: 0.7 | M18: 43.1 | N18: 43.8 | O18: 122.9
A19: 5 | B19: 面積 | C19: 0.09 | D19: 3.05 | F19: 2.32 | G19: 0.1 | H19: 1.53 | I19: 7.09 | L19: 2.87 | M19: 32.71 | N19: 35.58 | O19: 42.67
B20: 蓄積 | C20: 52 | D20: 4521 | F20: 2486 | G20: 193 | H20: 1782 | I20: 9034 | L20: 695 | M20: 2000 | N20: 2695 | O20: 11729
B21: 成長 | C21: 2.5 | D21: 263.9 | F21: 126.8 | G21: 8.8 | H21: 118.1 | I21: 520.1 | L21: 33.9 | M21: 104.2 | N21: 138.1 | O21: 658.2
A22: 6 | B22: 面積 | C22: 0.42 | D22: 12.54 | F22: 0.16 | G22: 1.76 | H22: 10.62 | I22: 25.5 | L22: 2.71 | M22: 78.16 | N22: 80.87 | O22: 106.37
B23: 蓄積 | C23: 82 | D23: 7213 | F23: 142 | G23: 287 | H23: 3233 | I23: 10957 | L23: 1228 | M23: 5084 | N23: 6312 | O23: 17269
B24: 成長 | C24: 3 | D24: 310.3 | F24: 5.2 | G24: 6.6 | H24: 162.7 | I24: 487.8 | L24: 47.1 | M24: 207.2 | N24: 254.3 | O24: 742.1
A25: 7 | B25: 面積 | C25: 0.48 | D25: 62.99 | E25: 0.28 | F25: 11.33 | G25: 1.97 | H25: 11.14 | I25: 88.19 | L25: 3.98 | M25: 76.31 | N25: 80.29 | O25: 168.48
B26: 蓄積 | C26: 127 | D26: 21900 | E26: 129 | F26: 1506 | G26: 303 | H26: 2401 | I26: 26366 | L26: 285 | M26: 4618 | N26: 4903 | O26: 31269
B27: 成長 | C27: 3.4 | D27: 707.3 | E27: 4.3 | F27: 36.3 | G27: 6.8 | H27: 112.7 | I27: 870.8 | L27: 9.7 | M27: 143.4 | N27: 153.1 | O27: 1023.9
A28: 8 | B28: 面積 | C28: 2.38 | D28: 87.17 | E28: 0.17 | F28: 7.56 | G28: 22.79 | H28: 46.07 | I28: 166.14 | L28: 6.99 | M28: 128.83 | N28: 135.82 | O28: 301.96
B29: 蓄積 | C29: 619 | D29: 33921 | E29: 31 | F29: 1342 | G29: 4352 | H29: 4790 | I29: 45055 | L29: 354 | M29: 8172 | N29: 8526 | O29: 53581
B30: 成長 | C30: 14.3 | D30: 886.3 | E30: 0.8 | F30: 26.9 | G30: 95.3 | H30: 179.4 | I30: 1203 | L30: 10.2 | M30: 246.2 | N30: 256.4 | O30: 1459.4
A31: 9 | B31: 面積 | C31: 3.51 | D31: 204.23 | E31: 2.73 | F31: 35.35 | G31: 64.82 | H31: 88.41 | I31: 399.05 | L31: 6.46 | M31: 162.84 | N31: 169.3 | O31: 568.35
B32: 蓄積 | C32: 984 | D32: 47273 | E32: 564 | F32: 6650 | G32: 13734 | H32: 8853 | I32: 78058 | L32: 498 | M32: 11624 | N32: 12122 | O32: 90180
B33: 成長 | C33: 17.2 | D33: 1007 | E33: 11.9 | F33: 101.5 | G33: 250.9 | H33: 283.5 | I33: 1672 | L33: 12.5 | M33: 314.3 | N33: 326.8 | O33: 1998.8
A34: 10 | B34: 面積 | C34: 7.62 | D34: 124.92 | E34: 2.35 | F34: 171.02 | G34: 249.55 | H34: 45.43 | I34: 600.89 | L34: 10.02 | M34: 311.1 | N34: 321.12 | O34: 922.01
B35: 蓄積 | C35: 2269 | D35: 27007 | E35: 531 | F35: 33136 | G35: 58368 | H35: 4960 | I35: 126271 | L35: 762 | M35: 23536 | N35: 24298 | O35: 150569
B36: 成長 | C36: 31.5 | D36: 497.5 | E36: 9.5 | F36: 444.8 | G36: 881.9 | H36: 143.6 | I36: 2008.8 | L36: 16.5 | M36: 600.4 | N36: 616.9 | O36: 2625.7
A37: 11 | B37: 面積 | C37: 8.01 | D37: 79.46 | E37: 1.83 | F37: 400.49 | G37: 1170.26 | H37: 117.28 | I37: 1777.33 | L37: 11.3 | M37: 258.59 | N37: 269.89 | O37: 2047.22
B38: 蓄積 | C38: 2586 | D38: 19276 | E38: 453 | F38: 84513 | G38: 288093 | H38: 16197 | I38: 411118 | L38: 1036 | M38: 23503 | N38: 24539 | O38: 435657 | P38: 伐 跡 | R38: 73.01
B39: 成長 | C39: 35.2 | D39: 312.5 | E39: 6.9 | F39: 941.5 | G39: 4032 | H39: 335.5 | I39: 5663.6 | L39: 19.9 | M39: 461 | N39: 480.9 | O39: 6144.5 | P39: 未立木地 | R39: 1725.96
A40: 12 | B40: 面積 | C40: 18.14 | D40: 21.91 | E40: 3.38 | F40: 617.31 | G40: 2883.67 | H40: 160.02 | I40: 3704.43 | L40: 26.06 | M40: 610.89 | N40: 636.95 | O40: 4341.38 | P40: 岩石地 | R40: 87.06
B41: 蓄積 | C41: 6217 | D41: 5696 | E41: 853 | F41: 137598 | G41: 746681 | H41: 22413 | I41: 919458 | L41: 2285 | M41: 57082 | N41: 59367 | O41: 978825 | P41: 崩壊地 | R41: 258.32
B42: 成長 | C42: 80 | D42: 80.7 | E42: 12.1 | F42: 1252.9 | G42: 9546 | H42: 439 | I42: 11410.7 | L42: 38 | M42: 1058.3 | N42: 1096.3 | O42: 12507 | P42: はげ山 | R42: 14.99
A43: 13 | B43: 面積 | C43: 33.55 | D43: 21.49 | E43: 20.23 | F43: 686.01 | G43: 4360.86 | H43: 320.21 | I43: 5442.35 | L43: 199.07 | M43: 1012.02 | N43: 1211.09 | O43: 6653.44 | P43: 施設敷 | R43: 102.01
B44: 蓄積 | C44: 11602 | D44: 5845 | E44: 5394 | F44: 156863 | G44: 1151268 | H44: 47281 | I44: 1378253 | L44: 19393 | M44: 102192 | N44: 121585 | O44: 1499838 | P44: 林地開発
B45: 成長 | C45: 142.3 | D45: 79.6 | E45: 68.9 | F45: 1406.7 | G45: 14191 | H45: 875.8 | I45: 16764.3 | L45: 266.7 | M45: 1593.5 | N45: 1860.2 | O45: 18624.5 | P45: 計 | R45: =SUM(R38:R44) -> 2261.35
A46: 14 | B46: 面積 | C46: 40.25 | D46: 68.36 | E46: 22.41 | F46: 1074.2 | G46: 4865 | H46: 284.89 | I46: 6355.11 | L46: 192.43 | M46: 1538.4 | N46: 1730.83 | O46: 8085.94 | P46: 竹 林 | R46: 4.78
B47: 蓄積 | C47: 14382 | D47: 17995 | E47: 6240 | F47: 255950 | G47: 1377156 | H47: 44385 | I47: 1716108 | L47: 21121 | M47: 159391 | N47: 180512 | O47: 1896620 | P47: 更新 困難地 | Q47: 面積 | R47: 1.19
B48: 成長 | C48: 142.3 | D48: 211.3 | E48: 73.6 | F48: 2024.7 | G48: 14366.5 | H48: 737.8 | I48: 17556.2 | L48: 241 | M48: 1863.1 | N48: 2104.1 | O48: 19660.3 | Q48: 蓄積 | R48: 229
A49: 15 以上 | B49: 面積 | C49: 107.49 | D49: 288.21 | E49: 204.11 | F49: 3185.05 | G49: 4738.2 | H49: 1302.64 | I49: 9825.7 | J49: 0.31 | L49: 873.9 | M49: 5483.81 | N49: 6358.02 | O49: 16183.72 | Q49: 成長 | R49: 2.5
B50: 蓄積 | C50: 42717 | D50: 87377 | E50: 59379 | F50: 817381 | G50: 1337758 | H50: 265667 | I50: 2610279 | J50: 28 | L50: 97617 | M50: 651725 | N50: 749370 | O50: 3359649
B51: 成長 | C51: 98.7 | D51: 237.2 | E51: 116.6 | F51: 3926.3 | G51: 6332.3 | H51: 1878.7 | I51: 12589.8 | J51: 0 | L51: 660.2 | M51: 2493.8 | N51: 3154 | O51: 15743.8 | P51: 総 合 計
A52: 計 | B52: 面積 | C52: =SUM(C7,C10,C13,C16,C19,C22,C25,C28,C31,C34,C37,C40,C43,C46,C49) -> 222.12 | D52: 978.35 | E52: 257.52 | F52: 6206.61 | G52: 18421.51 | H52: 2388.24 | I52: 28474.35 | J52: =SUM(J7,J10,J13,J16,J19,J22,J25,J28,J31,J34,J37,J40,J43,J46,J49) -> 0.31 | K52: =SUM(K7,K10,K13,K16,K19,K22,K25,K28,K31,K34,K37,K40,K43,K46,K49) -> 0 | L52: =SUM(L7,L10,L13,L16,L19,L22,L25,L28,L31,L34,L37,L40,L43,L46,L49) -> 1341.01 | M52: =SUM(M7,M10,M13,M16,M19,M22,M25,M28,M31,M34,M37,M40,M43,M46,M49) -> 9725.17 | N52: =SUM(J52:M52) -> 11066.49 | O52: =SUM(N52,I52) -> 39540.84 | P52: 面 積 | R52: =SUM(O52,R45,R47,R46) -> 41808.16
B53: 蓄積 | C53: 81654 | D53: 278631 | E53: 73650 | F53: 1497567 | G53: 4979164 | H53: 421981 | I53: 7332647 | J53: =SUM(J8,J11,J14,J17,J20,J23,J26,J29,J32,J35,J38,J41,J44,J47,J50) -> 28 | K53: 0 | L53: 145307 | M53: 1049963 | N53: =SUM(J53:M53) -> 1195298 | O53: 8527945 | P53: 蓄 積 | R53: =O53+R48 -> 8528174
B54: 成長 | C54: 573.2 | D54: 4648.9 | E54: 311.6 | F54: 10293.6 | G54: 49775.7 | H54: 5268.3 | I54: 70871.3 | J54: 0 | K54: 0 | L54: 1359.2 | M54: 9164.8 | N54: =SUM(J54:M54) -> 10524 | O54: 81395.3 | P54: 成長量 | R54: =O54+R49 -> 81397.8

Sheet 上伊那
A1: 第4表 地域振興局別・資源構成表
A3: 上伊那地域振興局 | O3: 単位 面積 : ha、蓄積 成長量 : ㎥
B4: 樹種 | C4: 針 葉 樹 | J4: 広 葉 樹 | O4: 計
C5: ス ギ | D5: ヒ ノ キ | E5: サ ワ ラ | F5: ア カ マ ツ | G5: カ ラ マ ツ | H5: そ の 他 針 | I5: 小 計 | J5: ク ヌ ギ | K5: ブ ナ | L5: ナ ラ | M5: そ の 他 広 | N5: 小 計
A6: 齢級
A7: 1 | B7: 面積 | C7: 1.34 | D7: 29.5 | E7: 0.37 | G7: 37.35 | I7: 68.56 | J7: 0.02 | L7: 17.25 | M7: 18 | N7: 35.27 | O7: 103.83
B8: 蓄積 | C8: 0 | D8: 0 | E8: 0 | G8: 0 | I8: 0 | J8: 0 | L8: 0 | M8: 0 | N8: 0 | O8: 0
B9: 成長 | C9: 0 | D9: 0 | E9: 0 | G9: 0 | I9: 0 | J9: 0 | L9: 0 | M9: 0 | N9: 0 | O9: 0
A10: 2 | B10: 面積 | C10: 0.31 | D10: 12.17 | F10: 0.19 | G10: 3 | H10: 0.11 | I10: 15.78 | L10: 4.13 | M10: 15.19 | N10: 19.32 | O10: 35.1
B11: 蓄積 | C11: 0 | D11: 0 | F11: 0 | G11: 0 | H11: 0 | I11: 0 | J11: 7 | L11: 40 | M11: 198 | N11: 245 | O11: 245
B12: 成長 | C12: 0 | D12: 0 | F12: 0 | G12: 0 | H12: 0 | I12: 0 | J12: 1.7 | L12: 5.2 | M12: 27.9 | N12: 34.8 | O12: 34.8
A13: 3 | B13: 面積 | D13: 22.74 | E13: 0.11 | F13: 0.95 | G13: 16.42 | I13: 40.22 | L13: 5.27 | M13: 12.49 | N13: 17.76 | O13: 57.98
B14: 蓄積 | D14: 1517 | E14: 6 | F14: 61 | G14: 1198 | I14: 2782 | L14: 138 | M14: 268 | N14: 406 | O14: 3188
B15: 成長 | D15: 291.8 | E15: 1.2 | F15: 8.1 | G15: 110.2 | I15: 411.3 | L15: 12.3 | M15: 23.5 | N15: 35.8 | O15: 447.1
A16: 4 | B16: 面積 | D16: 131.75 | F16: 1.07 | G16: 9.85 | H16: 0.63 | I16: 143.3 | K16: 0.61 | L16: 13.43 | M16: 31.1 | N16: 45.14 | O16: 188.44
B17: 蓄積 | D17: 11305 | F17: 84 | G17: 915 | H17: 19 | I17: 12323 | K17: 10 | L17: 394 | M17: 1062 | N17: 1466 | O17: 13789
B18: 成長 | D18: 1032.7 | F18: 7 | G18: 53.8 | H18: 1.5 | I18: 1095 | K18: 0.9 | L18: 25.7 | M18: 72.2 | N18: 98.8 | O18: 1193.8
A19: 5 | B19: 面積 | C19: 0.18 | D19: 112.36 | F19: 5.94 | G19: 72.48 | H19: 0.3 | I19: 191.26 | J19: 0.42 | L19: 3.16 | M19: 41.8 | N19: 45.38 | O19: 236.64
B20: 蓄積 | C20: 30 | D20: 15231 | F20: 668 | G20: 9137 | H20: 755 | I20: 25821 | J20: 26 | L20: 125 | M20: 1632 | N20: 1783 | O20: 27604
B21: 成長 | C21: 1.5 | D21: 887.1 | F21: 33.9 | G21: 426.8 | H21: 51.4 | I21: 1400.7 | J21: 0.8 | L21: 6.1 | M21: 86.7 | N21: 93.6 | O21: 1494.3
A22: 6 | B22: 面積 | C22: 0.59 | D22: 197.37 | F22: 2.53 | G22: 93.59 | H22: 1.76 | I22: 295.84 | L22: 2.53 | M22: 138.13 | N22: 140.66 | O22: 436.5
B23: 蓄積 | C23: 119 | D23: 35246 | F23: 315 | G23: 13332 | H23: 107 | I23: 49119 | L23: 137 | M23: 6646 | N23: 6783 | O23: 55902
B24: 成長 | C24: 4.2 | D24: 1519.3 | F24: 11.6 | G24: 309.2 | H24: 5.5 | I24: 1849.8 | L24: 5.3 | M24: 269.7 | N24: 275 | O24: 2124.8
A25: 7 | B25: 面積 | C25: 2.65 | D25: 313.14 | F25: 47.72 | G25: 130.63 | H25: 16.48 | I25: 510.62 | J25: 0.83 | K25: 1.56 | L25: 24.89 | M25: 198.06 | N25: 225.34 | O25: 735.96
B26: 蓄積 | C26: 582 | D26: 66590 | F26: 6727 | G26: 24030 | H26: 1765 | I26: 99694 | J26: 67 | K26: 34 | L26: 1552 | M26: 11834 | N26: 13487 | O26: 113181
B27: 成長 | C27: 15 | D27: 2155.6 | F27: 171.4 | G27: 531.6 | H27: 82.5 | I27: 2956.1 | J27: 0.2 | K27: 1.9 | L27: 49.6 | M27: 366.4 | N27: 418.1 | O27: 3374.2
A28: 8 | B28: 面積 | C28: 12.71 | D28: 388.59 | F28: 67.63 | G28: 258.87 | H28: 24.81 | I28: 752.61 | J28: 0.58 | L28: 21.64 | M28: 301.86 | N28: 324.08 | O28: 1076.69
B29: 蓄積 | C29: 3604 | D29: 79299 | F29: 12878 | G29: 47715 | H29: 2813 | I29: 146309 | J29: 50 | L29: 1589 | M29: 19901 | N29: 21540 | O29: 167849
B30: 成長 | C30: 83.6 | D30: 2068.7 | F30: 270.3 | G30: 1024.4 | H30: 103.8 | I30: 3550.8 | J30: 0.1 | L30: 46.1 | M30: 602.4 | N30: 648.6 | O30: 4199.4
A31: 9 | B31: 面積 | C31: 19.37 | D31: 615.14 | F31: 175 | G31: 509 | H31: 92.69 | I31: 1411.2 | J31: 1.86 | L31: 20.7 | M31: 250.86 | N31: 273.42 | O31: 1684.62
B32: 蓄積 | C32: 5347 | D32: 128360 | F32: 32888 | G32: 97026 | H32: 10419 | I32: 274040 | J32: 165 | L32: 1704 | M32: 19825 | N32: 21694 | O32: 295734
B33: 成長 | C33: 91.6 | D33: 2712.8 | F33: 501.5 | G33: 1799 | H33: 317.9 | I33: 5422.8 | J33: 0.1 | L33: 46.2 | M33: 554.6 | N33: 600.9 | O33: 6023.7
A34: 10 | B34: 面積 | C34: 38.66 | D34: 908.28 | E34: 3.18 | F34: 654.52 | G34: 1133.09 | H34: 85.06 | I34: 2822.79 | J34: 0.12 | L34: 13.02 | M34: 553.06 | N34: 566.2 | O34: 3388.99
B35: 蓄積 | C35: 11662 | D35: 206809 | E35: 723 | F35: 135110 | G35: 265848 | H35: 10508 | I35: 630660 | J35: 8 | L35: 1212 | M35: 46723 | N35: 47943 | O35: 678603
B36: 成長 | C36: 163.4 | D36: 3751.7 | E36: 13 | F36: 1771.7 | G36: 4011.1 | H36: 311.6 | I36: 10022.5 | J36: 0 | L36: 29.3 | M36: 1188.6 | N36: 1217.9 | O36: 11240.4
A37: 11 | B37: 面積 | C37: 80.22 | D37: 662.33 | E37: 11.31 | F37: 2027.94 | G37: 2210.11 | H37: 32.8 | I37: 5024.71 | J37: 1.32 | L37: 17.09 | M37: 666.83 | N37: 685.24 | O37: 5709.95
B38: 蓄積 | C38: 25976 | D38: 164745 | E38: 2037 | F38: 446334 | G38: 541832 | H38: 4367 | I38: 1185291 | J38: 118 | L38: 1730 | M38: 64529 | N38: 66377 | O38: 1251668 | P38: 伐 跡 | R38: 37.48
B39: 成長 | C39: 359.8 | D39: 2645.4 | E39: 32.5 | F39: 4928.7 | G39: 7583.4 | H39: 95.1 | I39: 15644.9 | J39: 0 | L39: 34.5 | M39: 1265.3 | N39: 1299.8 | O39: 16944.7 | P39: 未立木地 | R39: 252.52
A40: 12 | B40: 面積 | C40: 194.67 | D40: 267.59 | E40: 1.35 | F40: 3463.8 | G40: 4883.7 | H40: 16.98 | I40: 8828.09 | J40: 1.6 | L40: 36.69 | M40: 904.67 | N40: 942.96 | O40: 9771.05 | P40: 岩石地 | R40: 122.18
B41: 蓄積 | C41: 66760 | D41: 73238 | E41: 338 | F41: 792083 | G41: 1239127 | H41: 2430 | I41: 2173976 | J41: 144 | L41: 3990 | M41: 93894 | N41: 98028 | O41: 2272004 | P41: 崩壊地 | R41: 513.49
B42: 成長 | C42: 863.7 | D42: 1032.5 | E42: 4.6 | F42: 7210.6 | G42: 15757.6 | H42: 47.5 | I42: 24916.5 | J42: 0 | L42: 75.5 | M42: 1797.1 | N42: 1872.6 | O42: 26789.1 | P42: はげ山 | R42: 7.39
A43: 13 | B43: 面積 | C43: 316.71 | D43: 286.75 | E43: 9.73 | F43: 3348.28 | G43: 6360.16 | H43: 45.49 | I43: 10367.12 | J43: 6.73 | L43: 69.12 | M43: 1607.72 | N43: 1683.57 | O43: 12050.69 | P43: 施設敷 | R43: 147.78
B44: 蓄積 | C44: 112461 | D44: 76851 | E44: 2617 | F44: 785471 | G44: 1695516 | H44: 6470 | I44: 2679386 | J44: 602 | L44: 8120 | M44: 180271 | N44: 188993 | O44: 2868379 | P44: 林地開発 | R44: 14.17
B45: 成長 | C45: 1352.9 | D45: 1056.5 | E45: 34.9 | F45: 6957.2 | G45: 20722.7 | H45: 123.4 | I45: 30247.6 | J45: 0 | L45: 113.2 | M45: 2779.5 | N45: 2892.7 | O45: 33140.3 | P45: 計 | R45: =SUM(R38:R44) -> 1095.01
A46: 14 | B46: 面積 | C46: 388.01 | D46: 284.89 | E46: 4.24 | F46: 2897 | G46: 5719.94 | H46: 23.47 | I46: 9317.55 | J46: 13.97 | L46: 153.29 | M46: 2910.26 | N46: 3077.52 | O46: 12395.07 | P46: 竹 林 | R46: 259.31
B47: 蓄積 | C47: 141616 | D47: 78445 | E47: 1232 | F47: 705114 | G47: 1669241 | H47: 3800 | I47: 2599448 | J47: 1261 | L47: 18819 | M47: 347550 | N47: 367630 | O47: 2967078 | P47: 更新 困難地 | Q47: 面積 | R47: 7.71
B48: 成長 | C48: 1405.7 | D48: 934.2 | E48: 14.4 | F48: 5596.3 | G48: 17391.2 | H48: 61.3 | I48: 25403.1 | J48: 0 | L48: 200.7 | M48: 3758.7 | N48: 3959.4 | O48: 29362.5 | Q48: 蓄積 | R48: 1007
A49: 15 以上 | B49: 面積 | C49: 423.89 | D49: 1230.8 | E49: 60.9 | F49: 6123.89 | G49: 4518.37 | H49: 495.05 | I49: 12852.9 | J49: 39.01 | K49: 7.88 | L49: 318.23 | M49: 9009.47 | N49: 9374.59 | O49: 22227.49 | Q49: 成長 | R49: 0.3
B50: 蓄積 | C50: 167114 | D50: 379771 | E50: 18654 | F50: 1634534 | G50: 1348100 | H50: 103689 | I50: 3651862 | J50: 3459 | K50: 1095 | L50: 41794 | M50: 1122365 | N50: 1168713 | O50: 4820575
B51: 成長 | C51: 630.2 | D51: 1003.5 | E51: 26.4 | F51: 8345.5 | G51: 9052.8 | H51: 761.7 | I51: 19820.1 | J51: 0 | K51: 0 | L51: 183.3 | M51: 5142 | N51: 5325.3 | O51: 25145.4 | P51: 総 合 計
A52: 計 | B52: 面積 | C52: =SUM(C7,C10,C13,C16,C19,C22,C25,C28,C31,C34,C37,C40,C43,C46,C49) -> 1479.31 | D52: 5463.4 | E52: 91.19 | F52: 18816.46 | G52: 25956.56 | H52: 835.63 | I52: 52642.55 | J52: =SUM(J7,J10,J13,J16,J19,J22,J25,J28,J31,J34,J37,J40,J43,J46,J49) -> 66.46 | K52: =SUM(K7,K10,K13,K16,K19,K22,K25,K28,K31,K34,K37,K40,K43,K46,K49) -> 10.05 | L52: =SUM(L7,L10,L13,L16,L19,L22,L25,L28,L31,L34,L37,L40,L43,L46,L49) -> 720.44 | M52: =SUM(M7,M10,M13,M16,M19,M22,M25,M28,M31,M34,M37,M40,M43,M46,M49) -> 16659.5 | N52: =SUM(J52:M52) -> 17456.45 | O52: =SUM(N52,I52) -> 70099 | P52: 面 積 | R52: =SUM(O52,R45,R47,R46) -> 71461.03
B53: 蓄積 | C53: 535271 | D53: 1317407 | E53: 25607 | F53: 4552267 | G53: 6953017 | H53: 147142 | I53: 13530711 | J53: =SUM(J8,J11,J14,J17,J20,J23,J26,J29,J32,J35,J38,J41,J44,J47,J50) -> 5907 | K53: 1139 | L53: 81344 | M53: 1916698 | N53: =SUM(J53:M53) -> 2005088 | O53: 15535799 | P53: 蓄 積 | R53: =O53+R48 -> 15536806
B54: 成長 | C54: 4971.6 | D54: 21091.8 | E54: 127 | F54: 35813.8 | G54: 78773.8 | H54: 1963.2 | I54: 142741.2 | J54: 2.9 | K54: 2.8 | L54: 833 | M54: 17934.6 | N54: =SUM(J54:M54) -> 18773.3 | O54: 161514.5 | P54: 成長量 | R54: =O54+R49 -> 161514.8

Sheet 南信州
A1: 第4表 地域振興局別・資源構成表
A3: 南信州地域振興局 | O3: 単位 面積 : ha、蓄積 成長量 : ㎥
B4: 樹種 | C4: 針 葉 樹 | J4: 広 葉 樹 | O4: 計
C5: ス ギ | D5: ヒ ノ キ | E5: サ ワ ラ | F5: ア カ マ ツ | G5: カ ラ マ ツ | H5: そ の 他 針 | I5: 小 計 | J5: ク ヌ ギ | K5: ブ ナ | L5: ナ ラ | M5: そ の 他 広 | N5: 小 計
A6: 齢級
A7: 1 | B7: 面積 | C7: 6.1 | D7: 17.51 | F7: 0.51 | G7: 17.42 | I7: 41.54 | L7: 6.62 | M7: 6.8 | N7: 13.42 | O7: 54.96
B8: 蓄積 | C8: 0 | D8: 0 | F8: 0 | G8: 0 | I8: 0 | L8: 0 | M8: 0 | N8: 0 | O8: 0
B9: 成長 | C9: 0 | D9: 0 | F9: 0 | G9: 0 | I9: 0 | L9: 0 | M9: 0 | N9: 0 | O9: 0
A10: 2 | B10: 面積 | C10: 0.12 | D10: 27.23 | H10: 0.22 | I10: 27.57 | L10: 8.21 | M10: 23.45 | N10: 31.66 | O10: 59.23
B11: 蓄積 | C11: 0 | D11: 0 | H11: 0 | I11: 0 | L11: 101 | M11: 274 | N11: 375 | O11: 375
B12: 成長 | C12: 0 | D12: 0 | H12: 0 | I12: 0 | L12: 14.5 | M12: 39.2 | N12: 53.7 | O12: 53.7
A13: 3 | B13: 面積 | C13: 5.36 | D13: 103.77 | F13: 0.56 | H13: 0.44 | I13: 110.13 | L13: 8.13 | M13: 119.01 | N13: 127.14 | O13: 237.27
B14: 蓄積 | C14: 440 | D14: 5221 | F14: 37 | G14: 483 | H14: 11 | I14: 6192 | L14: 189 | M14: 2658 | N14: 2847 | O14: 9039
B15: 成長 | C15: 89 | D15: 1127.5 | F15: 5 | G15: 52.2 | H15: 1.4 | I15: 1275.1 | L15: 16.3 | M15: 228.4 | N15: 244.7 | O15: 1519.8
A16: 4 | B16: 面積 | C16: 10.41 | D16: 330.23 | E16: 9.32 | F16: 4.73 | G16: 2.49 | H16: 0.43 | I16: 357.61 | L16: 15.17 | M16: 63.16 | N16: 78.33 | O16: 435.94
B17: 蓄積 | C17: 1769 | D17: 26421 | E17: 633 | F17: 364 | G17: 138 | H17: 14 | I17: 29339 | L17: 485 | M17: 2179 | N17: 2664 | O17: 32003
B18: 成長 | C18: 142.6 | D18: 2425.8 | E18: 60 | F18: 30 | G18: 10.3 | H18: 1.1 | I18: 2669.8 | L18: 32 | M18: 142.6 | N18: 174.6 | O18: 2844.4
A19: 5 | B19: 面積 | C19: 7.84 | D19: 416.96 | E19: 0.12 | F19: 12.58 | G19: 0.85 | H19: 0.35 | I19: 438.7 | K19: 0.56 | L19: 9.65 | M19: 167.95 | N19: 178.16 | O19: 616.86
B20: 蓄積 | C20: 2017 | D20: 61271 | E20: 13 | F20: 988 | G20: 114 | H20: 15 | I20: 64418 | K20: 13 | L20: 642 | M20: 7123 | N20: 7778 | O20: 72196
B21: 成長 | C21: 100.7 | D21: 3743.8 | E21: 0.8 | F21: 51.7 | G21: 6.1 | H21: 1 | I21: 3904.1 | K21: 1 | L21: 31 | M21: 341 | N21: 373 | O21: 4277.1
A22: 6 | B22: 面積 | C22: 17.67 | D22: 951.83 | E22: 0.51 | F22: 6.78 | G22: 4.69 | H22: 4.1 | I22: 985.58 | J22: 0.07 | L22: 6.48 | M22: 358.86 | N22: 365.41 | O22: 1350.99
B23: 蓄積 | C23: 8745 | D23: 157075 | E23: 56 | F23: 989 | G23: 674 | H23: 190 | I23: 167729 | J23: 5 | L23: 647 | M23: 17067 | N23: 17719 | O23: 185448
B24: 成長 | C24: 321.5 | D24: 6645.4 | E24: 2.6 | F24: 36.6 | G24: 24.3 | H24: 10.2 | I24: 7040.6 | J24: 0.1 | L24: 24.3 | M24: 646.8 | N24: 671.2 | O24: 7711.8
A25: 7 | B25: 面積 | C25: 21.97 | D25: 1655.05 | E25: 0.07 | F25: 39.05 | G25: 43.67 | H25: 7.23 | I25: 1767.04 | J25: 2.23 | L25: 55.87 | M25: 847.38 | N25: 905.48 | O25: 2672.52
B26: 蓄積 | C26: 5296 | D26: 281821 | E26: 12 | F26: 5997 | G26: 6162 | H26: 1567 | I26: 300855 | J26: 176 | L26: 3867 | M26: 49558 | N26: 53601 | O26: 354456
B27: 成長 | C27: 138.5 | D27: 9642.7 | E27: 0.4 | F27: 145 | G27: 180.6 | H27: 69 | I27: 10176.2 | J27: 0.3 | L27: 123.9 | M27: 1607.8 | N27: 1732 | O27: 11908.2
A28: 8 | B28: 面積 | C28: 39.51 | D28: 2410.69 | E28: 1.96 | F28: 39 | G28: 184.87 | H28: 50.9 | I28: 2726.93 | J28: 0.95 | L28: 64.14 | M28: 860.06 | N28: 925.15 | O28: 3652.08
B29: 蓄積 | C29: 10965 | D29: 448733 | E29: 307 | F29: 7057 | G29: 40643 | H29: 9034 | I29: 516739 | J29: 76 | L29: 4469 | M29: 58213 | N29: 62758 | O29: 579497
B30: 成長 | C30: 253.2 | D30: 11820.4 | E30: 9.2 | F30: 141.8 | G30: 970.2 | H30: 334.4 | I30: 13529.2 | J30: 0.1 | L30: 128.8 | M30: 1673.3 | N30: 1802.2 | O30: 15331.4
A31: 9 | B31: 面積 | C31: 155.55 | D31: 3417.91 | E31: 0.17 | F31: 78.64 | G31: 301.99 | H31: 87.43 | I31: 4041.69 | J31: 0.29 | L31: 77.4 | M31: 836.1 | N31: 913.79 | O31: 4955.48
B32: 蓄積 | C32: 48208 | D32: 710018 | E32: 34 | F32: 14922 | G32: 61837 | H32: 8444 | I32: 843463 | J32: 24 | L32: 6341 | M32: 63696 | N32: 70061 | O32: 913524
B33: 成長 | C33: 818 | D33: 15619 | E33: 0.8 | F33: 228.3 | G33: 1225.1 | H33: 275.2 | I33: 18166.4 | J33: 0 | L33: 170.7 | M33: 1694.1 | N33: 1864.8 | O33: 20031.2
A34: 10 | B34: 面積 | C34: 399.37 | D34: 4139.63 | E34: 1.83 | F34: 436.73 | G34: 937.06 | H34: 157.11 | I34: 6071.73 | J34: 0.02 | K34: 3.86 | L34: 42.6 | M34: 1323.28 | N34: 1369.76 | O34: 7441.49
B35: 蓄積 | C35: 132199 | D35: 929141 | E35: 409 | F35: 89857 | G35: 216392 | H35: 18062 | I35: 1386060 | J35: 2 | K35: 293 | L35: 3847 | M35: 109421 | N35: 113563 | O35: 1499623
B36: 成長 | C36: 1929.5 | D36: 16787 | E36: 7.3 | F36: 1098.7 | G36: 3236.1 | H36: 496.1 | I36: 23554.7 | J36: 0 | K36: 9 | L36: 92 | M36: 2555.2 | N36: 2656.2 | O36: 26210.9
A37: 11 | B37: 面積 | C37: 943.02 | D37: 3669.01 | E37: 6.8 | F37: 2334.03 | G37: 1714.15 | H37: 154.41 | I37: 8821.42 | J37: 0.58 | K37: 33.07 | L37: 67.97 | M37: 2253.49 | N37: 2355.11 | O37: 11176.53
B38: 蓄積 | C38: 322206 | D38: 888510 | E38: 1629 | F38: 496673 | G38: 424894 | H38: 21171 | I38: 2155083 | J38: 47 | K38: 3095 | L38: 6905 | M38: 206105 | N38: 216152 | O38: 2371235 | P38: 伐 跡 | R38: 41.73
B39: 成長 | C39: 4280.8 | D39: 14345.3 | E39: 26.6 | F39: 5579.4 | G39: 5930.9 | H39: 502.8 | I39: 30665.8 | J39: 0 | K39: 80.6 | L39: 137 | M39: 3997.5 | N39: 4215.1 | O39: 34880.9 | P39: 未立木地 | R39: 840.98
A40: 12 | B40: 面積 | C40: 2107.86 | D40: 2055.51 | E40: 2.58 | F40: 4277.03 | G40: 3309.42 | H40: 59.5 | I40: 11811.9 | J40: 3.38 | K40: 2.2 | L40: 146.56 | M40: 3576.59 | N40: 3728.73 | O40: 15540.63 | P40: 岩石地 | R40: 320.87
B41: 蓄積 | C41: 769508 | D41: 534978 | E41: 696 | F41: 962458 | G41: 874364 | H41: 6955 | I41: 3148959 | J41: 274 | K41: 218 | L41: 15408 | M41: 349957 | N41: 365857 | O41: 3514816 | P41: 崩壊地 | R41: 2038.8
B42: 成長 | C42: 9562.4 | D42: 7029.4 | E42: 9.1 | F42: 10650.8 | G42: 11216.3 | H42: 132 | I42: 38600 | J42: 0 | K42: 5.6 | L42: 298.4 | M42: 6653.6 | N42: 6957.6 | O42: 45557.6 | P42: はげ山 | R42: 3.85
A43: 13 | B43: 面積 | C43: 2584.13 | D43: 1721.02 | E43: 3.55 | F43: 2785.36 | G43: 3618.79 | H43: 179.48 | I43: 10892.33 | J43: 3.96 | K43: 11.31 | L43: 313.74 | M43: 5070.81 | N43: 5399.82 | O43: 16292.15 | P43: 施設敷 | R43: 259.85
B44: 蓄積 | C44: 973211 | D44: 460573 | E44: 965 | F44: 646466 | G44: 953815 | H44: 24438 | I44: 3059468 | J44: 320 | K44: 991 | L44: 35838 | M44: 545557 | N44: 582706 | O44: 3642174 | P44: 林地開発 | R44: 11.6
B45: 成長 | C45: 11711.9 | D45: 5994.5 | E45: 12.6 | F45: 6991.4 | G45: 11821.4 | H45: 460.3 | I45: 36992.1 | J45: 0.1 | K45: 23.7 | L45: 557 | M45: 8725.7 | N45: 9306.5 | O45: 46298.6 | P45: 計 | R45: =SUM(R38:R44) -> 3517.68
A46: 14 | B46: 面積 | C46: 1942.11 | D46: 1151.87 | E46: 2.05 | F46: 1691.66 | G46: 3888.4 | H46: 83.81 | I46: 8759.9 | J46: 5.72 | L46: 560.54 | M46: 6202.93 | N46: 6769.19 | O46: 15529.09 | P46: 竹 林 | R46: 616.3
B47: 蓄積 | C47: 776391 | D47: 322317 | E47: 518 | F47: 408652 | G47: 1075078 | H47: 12711 | I47: 2595667 | J47: 428 | L47: 66773 | M47: 714377 | N47: 781578 | O47: 3377245 | P47: 更新 困難地 | Q47: 面積 | R47: 10.61
B48: 成長 | C48: 7668.5 | D48: 3864.5 | E48: 6 | F48: 3267.1 | G48: 11602.5 | H48: 212.1 | I48: 26620.7 | J48: 0 | L48: 817.4 | M48: 8912.3 | N48: 9729.7 | O48: 36350.4 | Q48: 蓄積 | R48: 1284
A49: 15 以上 | B49: 面積 | C49: 3082.01 | D49: 4111.95 | E49: 52.39 | F49: 5067.69 | G49: 2989.9 | H49: 3837.67 | I49: 19141.61 | J49: 13.09 | K49: 191.29 | L49: 2164.64 | M49: 30653.39 | N49: 33022.41 | O49: 52164.02 | Q49: 成長 | R49: 15.4
B50: 蓄積 | C50: 1325432 | D50: 1252783 | E50: 15936 | F50: 1327574 | G50: 895886 | H50: 802585 | I50: 5620196 | J50: 968 | K50: 32752 | L50: 274456 | M50: 3712201 | N50: 4020377 | O50: 9640573
B51: 成長 | C51: 4076.4 | D51: 4400.9 | E51: 19.1 | F51: 6424.3 | G51: 6464.6 | H51: 3465.4 | I51: 24850.7 | J51: 0.2 | K51: 119.1 | L51: 1909.1 | M51: 20585.8 | N51: 22614.2 | O51: 47464.9 | P51: 総 合 計
A52: 計 | B52: 面積 | C52: =SUM(C7,C10,C13,C16,C19,C22,C25,C28,C31,C34,C37,C40,C43,C46,C49) -> 11323.03 | D52: 26180.17 | E52: 81.35 | F52: 16774.35 | G52: 17013.7 | H52: 4623.08 | I52: 75995.68 | J52: =SUM(J7,J10,J13,J16,J19,J22,J25,J28,J31,J34,J37,J40,J43,J46,J49) -> 30.29 | K52: =SUM(K7,K10,K13,K16,K19,K22,K25,K28,K31,K34,K37,K40,K43,K46,K49) -> 242.29 | L52: =SUM(L7,L10,L13,L16,L19,L22,L25,L28,L31,L34,L37,L40,L43,L46,L49) -> 3547.72 | M52: =SUM(M7,M10,M13,M16,M19,M22,M25,M28,M31,M34,M37,M40,M43,M46,M49) -> 52363.26 | N52: =SUM(J52:M52) -> 56183.56 | O52: =SUM(N52,I52) -> 132179.24 | P52: 面 積 | R52: =SUM(O52,R45,R47,R46) -> 136323.83
B53: 蓄積 | C53: 4376387 | D53: 6078862 | E53: 21208 | F53: 3962034 | G53: 4550480 | H53: 905197 | I53: 19894168 | J53: =SUM(J8,J11,J14,J17,J20,J23,J26,J29,J32,J35,J38,J41,J44,J47,J50) -> 2320 | K53: 37362 | L53: 419968 | M53: 5838386 | N53: =SUM(J53:M53) -> 6298036 | O53: 26192204 | P53: 蓄 積 | R53: =O53+R48 -> 26193488
B54: 成長 | C54: 41093 | D54: 103446.2 | E54: 154.5 | F54: 34650.1 | G54: 52740.6 | H54: 5961 | I54: 238045.4 | J54: 0.8 | K54: 239 | L54: 4352.4 | M54: 57803.3 | N54: =SUM(J54:M54) -> 62395.5 | O54: 300440.9 | P54: 成長量 | R54: =O54+R49 -> 300456.3

Sheet 木曽
A1: 第4表 地域振興局別・資源構成表
A3: 木曽地域振興局 | O3: 単位 面積 : ha、蓄積 成長量 : ㎥
B4: 樹種 | C4: 針 葉 樹 | J4: 広 葉 樹 | O4: 計
C5: ス ギ | D5: ヒ ノ キ | E5: サ ワ ラ | F5: ア カ マ ツ | G5: カ ラ マ ツ | H5: そ の 他 針 | I5: 小 計 | J5: ク ヌ ギ | K5: ブ ナ | L5: ナ ラ | M5: そ の 他 広 | N5: 小 計
A6: 齢級
A7: 1 | B7: 面積 | C7: 0.2 | D7: 7.11 | G7: 8.25 | I7: 15.56 | L7: 0.39 | M7: 14.19 | N7: 14.58 | O7: 30.14
B8: 蓄積 | C8: 0 | D8: 0 | G8: 0 | I8: 0 | L8: 0 | M8: 0 | N8: 0 | O8: 0
B9: 成長 | C9: 0 | D9: 0 | G9: 0 | I9: 0 | L9: 0 | M9: 0 | N9: 0 | O9: 0
A10: 2 | B10: 面積 | D10: 5.07 | F10: 0.06 | I10: 5.13 | M10: 3.97 | N10: 3.97 | O10: 9.1
B11: 蓄積 | D11: 0 | F11: 0 | I11: 0 | M11: 42 | N11: 42 | O11: 42
B12: 成長 | D12: 0 | F12: 0 | I12: 0 | M12: 5.6 | N12: 5.6 | O12: 5.6
A13: 3 | B13: 面積 | D13: 17.06 | E13: 2.13 | F13: 0.13 | G13: 0.1 | H13: 0.24 | I13: 19.66 | L13: 0.19 | M13: 11.69 | N13: 11.88 | O13: 31.54
B14: 蓄積 | D14: 802 | E14: 102 | F14: 9 | G14: 8 | H14: 6 | I14: 927 | L14: 3 | M14: 277 | N14: 280 | O14: 1207
B15: 成長 | D15: 154.3 | E15: 19.6 | F15: 1.2 | G15: 0.8 | H15: 0.8 | I15: 176.7 | L15: 0.3 | M15: 24.5 | N15: 24.8 | O15: 201.5
A16: 4 | B16: 面積 | C16: 0.36 | D16: 54.47 | E16: 0.24 | F16: 0.13 | G16: 1.12 | H16: 0.13 | I16: 56.45 | L16: 0.27 | M16: 28.79 | N16: 29.06 | O16: 85.51
B17: 蓄積 | C17: 43 | D17: 4140 | E17: 11 | F17: 9 | G17: 112 | H17: 5 | I17: 4320 | L17: 8 | M17: 905 | N17: 913 | O17: 5233
B18: 成長 | C18: 3.5 | D18: 379.2 | E18: 1.1 | F18: 0.7 | G18: 6.7 | H18: 0.4 | I18: 391.6 | L18: 0.5 | M18: 61.3 | N18: 61.8 | O18: 453.4
A19: 5 | B19: 面積 | C19: 0.04 | D19: 201.45 | E19: 0.74 | F19: 1.14 | G19: 1.82 | H19: 0.23 | I19: 205.42 | L19: 0.29 | M19: 45.45 | N19: 45.74 | O19: 251.16
B20: 蓄積 | C20: 7 | D20: 23805 | E20: 74 | F20: 550 | G20: 210 | H20: 11 | I20: 24657 | L20: 13 | M20: 1711 | N20: 1724 | O20: 26381
B21: 成長 | C21: 0.3 | D21: 1387.2 | E21: 4.4 | F21: 27.6 | G21: 9.6 | H21: 0.7 | I21: 1429.8 | L21: 0.6 | M21: 91.1 | N21: 91.7 | O21: 1521.5
A22: 6 | B22: 面積 | C22: 0.11 | D22: 261.11 | E22: 0.03 | F22: 0.58 | G22: 7.62 | H22: 0.96 | I22: 270.41 | L22: 13.94 | M22: 101.84 | N22: 115.78 | O22: 386.19
B23: 蓄積 | C23: 22 | D23: 34735 | E23: 4 | F23: 80 | G23: 1093 | H23: 190 | I23: 36124 | L23: 680 | M23: 4709 | N23: 5389 | O23: 41513
B24: 成長 | C24: 0.8 | D24: 1493.7 | E24: 0.2 | F24: 3 | G24: 25.3 | H24: 9.8 | I24: 1532.8 | L24: 26.4 | M24: 191.5 | N24: 217.9 | O24: 1750.7
A25: 7 | B25: 面積 | C25: 0.49 | D25: 469.02 | E25: 1.77 | F25: 2.85 | G25: 22.85 | H25: 7.48 | I25: 504.46 | L25: 24.98 | M25: 152.4 | N25: 177.38 | O25: 681.84
B26: 蓄積 | C26: 114 | D26: 76133 | E26: 286 | F26: 429 | G26: 3860 | H26: 710 | I26: 81532 | L26: 1513 | M26: 8563 | N26: 10076 | O26: 91608
B27: 成長 | C27: 3 | D27: 2459.7 | E27: 9.1 | F27: 11.3 | G27: 85.3 | H27: 32.6 | I27: 2601 | L27: 49.3 | M27: 265.8 | N27: 315.1 | O27: 2916.1
A28: 8 | B28: 面積 | C28: 4.93 | D28: 1166.17 | E28: 0.39 | F28: 7.43 | G28: 8 | H28: 12.84 | I28: 1199.76 | L28: 23.65 | M28: 224.84 | N28: 248.49 | O28: 1448.25
B29: 蓄積 | C29: 1232 | D29: 210985 | E29: 75 | F29: 1264 | G29: 1570 | H29: 1266 | I29: 216392 | L29: 1695 | M29: 14822 | N29: 16517 | O29: 232909
B30: 成長 | C30: 28.3 | D30: 5519.2 | E30: 1.9 | F30: 27.2 | G30: 32.9 | H30: 47.5 | I30: 5657 | L30: 49.1 | M30: 446.3 | N30: 495.4 | O30: 6152.4
A31: 9 | B31: 面積 | C31: 13.39 | D31: 1312.37 | E31: 0.52 | F31: 19.95 | G31: 94.14 | H31: 11.14 | I31: 1451.51 | L31: 17.69 | M31: 285.07 | N31: 302.76 | O31: 1754.27
B32: 蓄積 | C32: 3738 | D32: 263495 | E32: 104 | F32: 3802 | G32: 21184 | H32: 1271 | I32: 293594 | L32: 1374 | M32: 21686 | N32: 23060 | O32: 316654
B33: 成長 | C33: 64 | D33: 5612.9 | E33: 2.2 | F33: 57.4 | G33: 381.7 | H33: 39.1 | I33: 6157.3 | L33: 34.8 | M33: 600.9 | N33: 635.7 | O33: 6793
A34: 10 | B34: 面積 | C34: 36.9 | D34: 1471.67 | E34: 5.75 | F34: 175.87 | G34: 137.97 | H34: 36.45 | I34: 1864.61 | J34: 0.64 | L34: 62.98 | M34: 475.21 | N34: 538.83 | O34: 2403.44
B35: 蓄積 | C35: 10861 | D35: 327840 | E35: 1280 | F35: 36362 | G35: 33840 | H35: 4709 | I35: 414892 | J35: 44 | L35: 5661 | M35: 40100 | N35: 45805 | O35: 460697
B36: 成長 | C36: 154.2 | D36: 5972.6 | E36: 23.3 | F36: 474.2 | G36: 509.4 | H36: 140.2 | I36: 7273.9 | J36: 0.1 | L36: 133.7 | M36: 1016.4 | N36: 1150.2 | O36: 8424.1
A37: 11 | B37: 面積 | C37: 130.36 | D37: 1423.27 | E37: 11.02 | F37: 844.54 | G37: 902.46 | H37: 13.58 | I37: 3325.23 | L37: 130.07 | M37: 1097.4 | N37: 1227.47 | O37: 4552.7
B38: 蓄積 | C38: 41095 | D38: 340822 | E38: 2696 | F38: 181904 | G38: 232620 | H38: 2020 | I38: 801157 | L38: 12729 | M38: 105528 | N38: 118257 | O38: 919414 | P38: 伐 跡 | R38: 3.01
B39: 成長 | C39: 561.2 | D39: 5494.8 | E39: 43.5 | F39: 2023.5 | G39: 3257.1 | H39: 41.3 | I39: 11421.4 | L39: 249.4 | M39: 2075.9 | N39: 2325.3 | O39: 13746.7 | P39: 未立木地 | R39: 140.28
A40: 12 | B40: 面積 | C40: 312.42 | D40: 974.87 | E40: 23.7 | F40: 1039.92 | G40: 2713.81 | H40: 7.23 | I40: 5071.95 | L40: 186.22 | M40: 1817.11 | N40: 2003.33 | O40: 7075.28 | P40: 岩石地 | R40: 13.43
B41: 蓄積 | C41: 104517 | D41: 253957 | E41: 6246 | F41: 235578 | G41: 745309 | H41: 1127 | I41: 1346734 | L41: 18809 | M41: 183285 | N41: 202094 | O41: 1548828 | P41: 崩壊地 | R41: 37.8
B42: 成長 | C42: 1327 | D42: 3590.6 | E42: 88.2 | F42: 2159.5 | G42: 9608 | H42: 21.8 | I42: 16795.1 | L42: 355.9 | M42: 3491 | N42: 3846.9 | O42: 20642 | P42: はげ山
A43: 13 | B43: 面積 | C43: 508.17 | D43: 757.64 | E43: 37.77 | F43: 798.79 | G43: 3760.46 | H43: 16.13 | I43: 5878.96 | L43: 231.89 | M43: 2847.15 | N43: 3079.04 | O43: 8958 | P43: 施設敷 | R43: 159.94
B44: 蓄積 | C44: 176324 | D44: 203343 | E44: 10038 | F44: 184057 | G44: 1079128 | H44: 2779 | I44: 1655669 | L44: 26299 | M44: 309076 | N44: 335375 | O44: 1991044 | P44: 林地開発 | R44: 21.99
B45: 成長 | C45: 2095.7 | D45: 2786.2 | E45: 138.6 | F45: 1663.4 | G45: 13419.4 | H45: 51.3 | I45: 20154.6 | L45: 399.5 | M45: 4955.6 | N45: 5355.1 | O45: 25509.7 | P45: 計 | R45: =SUM(R38:R44) -> 376.45
A46: 14 | B46: 面積 | C46: 422.49 | D46: 487.66 | E46: 50.73 | F46: 866.73 | G46: 2790.15 | H46: 26.84 | I46: 4644.6 | L46: 384.3 | M46: 3654.18 | N46: 4038.48 | O46: 8683.08 | P46: 竹 林 | R46: 76.38
B47: 蓄積 | C47: 154121 | D47: 136952 | E47: 14383 | F47: 203318 | G47: 823071 | H47: 4913 | I47: 1336758 | L47: 45053 | M47: 419201 | N47: 464254 | O47: 1801012 | P47: 更新 困難地 | Q47: 面積 | R47: 0.06
B48: 成長 | C48: 1533.5 | D48: 1644.1 | E48: 172.5 | F48: 1679.9 | G48: 8763.4 | H48: 78.7 | I48: 13872.1 | L48: 488.6 | M48: 4776.4 | N48: 5265 | O48: 19137.1 | Q48: 蓄積 | R48: 5
A49: 15 以上 | B49: 面積 | C49: 445.49 | D49: 1638.22 | E49: 239.42 | F49: 2273.72 | G49: 1254.02 | H49: 380.72 | I49: 6231.59 | J49: 0.08 | L49: 888.23 | M49: 11043.05 | N49: 11931.36 | O49: 18162.95 | Q49: 成長 | R49: 0.1
B50: 蓄積 | C50: 173063 | D50: 495076 | E50: 70324 | F50: 602824 | G50: 377376 | H50: 85096 | I50: 1803759 | J50: 6 | L50: 111860 | M50: 1359749 | N50: 1471615 | O50: 3275374
B51: 成長 | C51: 540.4 | D51: 767.6 | E51: 111.4 | F51: 2734.6 | G51: 2202.6 | H51: 515.9 | I51: 6872.5 | J51: 0 | L51: 500.3 | M51: 5552.7 | N51: 6053 | O51: 12925.5 | P51: 総 合 計
A52: 計 | B52: 面積 | C52: =SUM(C7,C10,C13,C16,C19,C22,C25,C28,C31,C34,C37,C40,C43,C46,C49) -> 1875.35 | D52: 10247.16 | E52: 374.21 | F52: 6031.84 | G52: 11702.77 | H52: 513.97 | I52: 30745.3 | J52: =SUM(J7,J10,J13,J16,J19,J22,J25,J28,J31,J34,J37,J40,J43,J46,J49) -> 0.72 | K52: =SUM(K7,K10,K13,K16,K19,K22,K25,K28,K31,K34,K37,K40,K43,K46,K49) -> 0 | L52: =SUM(L7,L10,L13,L16,L19,L22,L25,L28,L31,L34,L37,L40,L43,L46,L49) -> 1965.09 | M52: =SUM(M7,M10,M13,M16,M19,M22,M25,M28,M31,M34,M37,M40,M43,M46,M49) -> 21802.34 | N52: =SUM(J52:M52) -> 23768.15 | O52: =SUM(N52,I52) -> 54513.45 | P52: 面 積 | R52: =SUM(O52,R45,R47,R46) -> 54966.34
B53: 蓄積 | C53: 665137 | D53: 2372085 | E53: 105623 | F53: 1450186 | G53: 3319381 | H53: 104103 | I53: 8016515 | J53: =SUM(J8,J11,J14,J17,J20,J23,J26,J29,J32,J35,J38,J41,J44,J47,J50) -> 50 | K53: 0 | L53: 225697 | M53: 2469654 | N53: =SUM(J53:M53) -> 2695401 | O53: 10711916 | P53: 蓄 積 | R53: =O53+R48 -> 10711921
B54: 成長 | C54: 6311.9 | D54: 37262.1 | E54: 616 | F54: 10863.5 | G54: 38302.2 | H54: 980.1 | I54: 94335.8 | J54: 0.1 | K54: 0 | L54: 2288.4 | M54: 23555 | N54: =SUM(J54:M54) -> 25843.5 | O54: 120179.3 | P54: 成長量 | R54: =O54+R49 -> 120179.4

Sheet 松本
A1: 第4表 地域振興局別・資源構成表
A3: 松本地域振興局 | O3: 単位 面積 : ha、蓄積 成長量 : ㎥
B4: 樹種 | C4: 針 葉 樹 | J4: 広 葉 樹 | O4: 計
C5: ス ギ | D5: ヒ ノ キ | E5: サ ワ ラ | F5: ア カ マ ツ | G5: カ ラ マ ツ | H5: そ の 他 針 | I5: 小 計 | J5: ク ヌ ギ | K5: ブ ナ | L5: ナ ラ | M5: そ の 他 広 | N5: 小 計
A6: 齢級
A7: 1 | B7: 面積 | C7: 6.53 | D7: 6.62 | F7: 4.42 | G7: 84.43 | I7: 102 | L7: 27.41 | M7: 65.34 | N7: 92.75 | O7: 194.75
B8: 蓄積 | C8: 0 | D8: 0 | F8: 0 | G8: 0 | I8: 0 | L8: 0 | M8: 0 | N8: 0 | O8: 0
B9: 成長 | C9: 0 | D9: 0 | F9: 0 | G9: 0 | I9: 0 | L9: 0 | M9: 0 | N9: 0 | O9: 0
A10: 2 | B10: 面積 | C10: 0.15 | D10: 17.03 | F10: 0.14 | G10: 23.19 | H10: 4.82 | I10: 45.33 | J10: 0.2 | L10: 14.96 | M10: 204.72 | N10: 219.88 | O10: 265.21
B11: 蓄積 | C11: 0 | D11: 0 | F11: 0 | G11: 0 | H11: 0 | I11: 0 | J11: 4 | L11: 152 | M11: 2364 | N11: 2520 | O11: 2520
B12: 成長 | C12: 0 | D12: 0 | F12: 0 | G12: 0 | H12: 0 | I12: 0 | J12: 1.2 | L12: 20.7 | M12: 319.2 | N12: 341.1 | O12: 341.1
A13: 3 | B13: 面積 | C13: 0.05 | D13: 19.15 | F13: 2.22 | G13: 0.12 | H13: 0.04 | I13: 21.58 | K13: 6.68 | L13: 0.66 | M13: 82.33 | N13: 89.67 | O13: 111.25
B14: 蓄積 | C14: 3 | D14: 565 | F14: 123 | G14: 113 | H14: 1 | I14: 805 | K14: 27 | L14: 17 | M14: 1826 | N14: 1870 | O14: 2675
B15: 成長 | C15: 0.7 | D15: 114.7 | F15: 16.5 | G15: 11.3 | H15: 0.1 | I15: 143.3 | K15: 5.8 | L15: 1.5 | M15: 160.9 | N15: 168.2 | O15: 311.5
A16: 4 | B16: 面積 | C16: 0.84 | D16: 29.1 | F16: 5.1 | G16: 0.55 | H16: 0.12 | I16: 35.71 | J16: 4.26 | L16: 0.25 | M16: 30.69 | N16: 35.2 | O16: 70.91
B17: 蓄積 | C17: 74 | D17: 1607 | F17: 405 | G17: 41 | H17: 45 | I17: 2172 | J17: 246 | L17: 44 | M17: 1045 | N17: 1335 | O17: 3507
B18: 成長 | C18: 8.9 | D18: 162.5 | F18: 33.4 | G18: 3 | H18: 3.9 | I18: 211.7 | J18: 11.4 | L18: 3 | M18: 72.1 | N18: 86.5 | O18: 298.2
A19: 5 | B19: 面積 | C19: 1.26 | D19: 88.54 | F19: 16.76 | G19: 10.53 | H19: 0.56 | I19: 117.65 | J19: 3.16 | L19: 5.64 | M19: 113.52 | N19: 122.32 | O19: 239.97
B20: 蓄積 | C20: 182 | D20: 8485 | F20: 1462 | G20: 2266 | H20: 497 | I20: 12892 | J20: 201 | K20: 115 | L20: 341 | M20: 5524 | N20: 6181 | O20: 19073
B21: 成長 | C21: 13 | D21: 530 | F21: 82 | G21: 123.1 | H21: 33.3 | I21: 781.4 | J21: 6.4 | K21: 9.2 | L21: 17.7 | M21: 288.8 | N21: 322.1 | O21: 1103.5
A22: 6 | B22: 面積 | C22: 4.52 | D22: 182.47 | F22: 17.47 | G22: 30.37 | H22: 4.43 | I22: 239.26 | J22: 16.05 | L22: 22.93 | M22: 258.88 | N22: 297.86 | O22: 537.12
B23: 蓄積 | C23: 1015 | D23: 24403 | F23: 4715 | G23: 4834 | H23: 854 | I23: 35821 | J23: 1137 | K23: 33 | L23: 1296 | M23: 12112 | N23: 14578 | O23: 50399
B24: 成長 | C24: 50.5 | D24: 1265.4 | F24: 183.1 | G24: 185.1 | H24: 46.3 | I24: 1730.4 | J24: 26.1 | K24: 2.2 | L24: 53.2 | M24: 488.8 | N24: 570.3 | O24: 2300.7
A25: 7 | B25: 面積 | C25: 12.19 | D25: 281.13 | E25: 0.7 | F25: 115.94 | G25: 55.8 | H25: 8.31 | I25: 474.07 | J25: 34.25 | L25: 40.6 | M25: 517.55 | N25: 592.4 | O25: 1066.47
B26: 蓄積 | C26: 2894 | D26: 38378 | E26: 52 | F26: 16039 | G26: 9140 | H26: 2393 | I26: 68896 | J26: 2659 | L26: 2459 | M26: 27601 | N26: 32719 | O26: 101615
B27: 成長 | C27: 108.1 | D27: 1573.6 | E27: 2.5 | F27: 475.3 | G27: 262 | H27: 105 | I27: 2526.5 | J27: 41.4 | L27: 76.3 | M27: 852.9 | N27: 970.6 | O27: 3497.1
A28: 8 | B28: 面積 | C28: 30.03 | D28: 321.83 | E28: 1.35 | F28: 69.17 | G28: 161.06 | H28: 62.21 | I28: 645.65 | J28: 41.95 | L28: 61.16 | M28: 614.36 | N28: 717.47 | O28: 1363.12
B29: 蓄積 | C29: 9055 | D29: 45481 | E29: 124 | F29: 10917 | G29: 27639 | H29: 7248 | I29: 100464 | J29: 3298 | L29: 4207 | M29: 38738 | N29: 46243 | O29: 146707
B30: 成長 | C30: 251.9 | D30: 1440.8 | E30: 4.8 | F30: 247.9 | G30: 671.9 | H30: 268.1 | I30: 2885.4 | J30: 29.9 | L30: 127.3 | M30: 1171.3 | N30: 1328.5 | O30: 4213.9
A31: 9 | B31: 面積 | C31: 74.34 | D31: 473.99 | E31: 0.13 | F31: 327.8 | G31: 328.55 | H31: 85.84 | I31: 1290.65 | J31: 48.99 | L31: 66.92 | M31: 486.12 | N31: 602.03 | O31: 1892.68
B32: 蓄積 | C32: 25645 | D32: 62973 | E32: 21 | F32: 56645 | G32: 61486 | H32: 9673 | I32: 216443 | J32: 4088 | L32: 5339 | M32: 36076 | N32: 45503 | O32: 261946
B33: 成長 | C33: 447.9 | D33: 1818.1 | E33: 0.5 | F33: 896 | G33: 1216.2 | H33: 323.6 | I33: 4702.3 | J33: 19.2 | L33: 148.1 | M33: 986.1 | N33: 1153.4 | O33: 5855.7
A34: 10 | B34: 面積 | C34: 168.5 | D34: 395.18 | E34: 0.63 | F34: 957.25 | G34: 1001.85 | H34: 214.19 | I34: 2737.6 | J34: 64.55 | L34: 58.65 | M34: 787.73 | N34: 910.93 | O34: 3648.53
B35: 蓄積 | C35: 62055 | D35: 59048 | E35: 113 | F35: 176908 | G35: 200899 | H35: 25449 | I35: 524472 | J35: 5500 | L35: 5210 | M35: 65953 | N35: 76663 | O35: 601135
B36: 成長 | C36: 952.5 | D36: 1287.9 | E36: 2.4 | F36: 2432.3 | G36: 3304.5 | H36: 695.2 | I36: 8674.8 | J36: 13.1 | L36: 133.7 | M36: 1677.7 | N36: 1824.5 | O36: 10499.3
A37: 11 | B37: 面積 | C37: 214.41 | D37: 174.65 | E37: 1.4 | F37: 2180.13 | G37: 1876.35 | H37: 142.6 | I37: 4589.54 | J37: 28.11 | L37: 65.44 | M37: 927.46 | N37: 1021.01 | O37: 5610.55
B38: 蓄積 | C38: 85266 | D38: 29163 | E38: 270 | F38: 431526 | G38: 411814 | H38: 17317 | I38: 975356 | J38: 2439 | L38: 6457 | M38: 84913 | N38: 93809 | O38: 1069165 | P38: 伐 跡 | R38: 132.75
B39: 成長 | C39: 1047.8 | D39: 563.9 | E39: 5.2 | F39: 4891.3 | G39: 5983 | H39: 404.7 | I39: 12895.9 | J39: 0 | L39: 127 | M39: 1638.8 | N39: 1765.8 | O39: 14661.7 | P39: 未立木地 | R39: 424.63
A40: 12 | B40: 面積 | C40: 306.42 | D40: 49.65 | E40: 0.14 | F40: 3361.03 | G40: 5082.31 | H40: 34.24 | I40: 8833.79 | J40: 55.46 | L40: 80.76 | M40: 1348.42 | N40: 1484.64 | O40: 10318.43 | P40: 岩石地 | R40: 765.34
B41: 蓄積 | C41: 127562 | D41: 9343 | E41: 25 | F41: 693700 | G41: 1210708 | H41: 4541 | I41: 2045879 | J41: 4711 | L41: 8370 | M41: 132327 | N41: 145408 | O41: 2191287 | P41: 崩壊地 | R41: 462.21
B42: 成長 | C42: 1320.9 | D42: 146.2 | E42: 0.5 | F42: 6752 | G42: 15749.7 | H42: 85.9 | I42: 24055.2 | J42: 0 | L42: 156.7 | M42: 2475.7 | N42: 2632.4 | O42: 26687.6 | P42: はげ山 | R42: 52.15
A43: 13 | B43: 面積 | C43: 374.33 | D43: 62.07 | E43: 8.91 | F43: 2771.22 | G43: 7411.55 | H43: 118.6 | I43: 10746.68 | J43: 146.55 | L43: 194.11 | M43: 3396.1 | N43: 3736.76 | O43: 14483.44 | P43: 施設敷 | R43: 113.87
B44: 蓄積 | C44: 159043 | D44: 12265 | E44: 1391 | F44: 585219 | G44: 1784312 | H44: 15543 | I44: 2557773 | J44: 12226 | L44: 20795 | M44: 350256 | N44: 383277 | O44: 2941050 | P44: 林地開発 | R44: 19.89
B45: 成長 | C45: 1618.3 | D45: 192.3 | E45: 20.9 | F45: 5579.8 | G45: 22616.4 | H45: 293.6 | I45: 30321.3 | J45: 0 | L45: 334 | M45: 5529.4 | N45: 5863.4 | O45: 36184.7 | P45: 計 | R45: =SUM(R38:R44) -> 1970.84
A46: 14 | B46: 面積 | C46: 361 | D46: 79.66 | E46: 12.69 | F46: 1848.19 | G46: 6024.79 | H46: 21.77 | I46: 8348.1 | J46: 298.58 | L46: 356.51 | M46: 6437.06 | N46: 7092.15 | O46: 15440.25 | P46: 竹 林 | R46: 226.82
B47: 蓄積 | C47: 153419 | D47: 16729 | E47: 1871 | F47: 406809 | G47: 1538590 | H47: 3212 | I47: 2120630 | J47: 25289 | L47: 40409 | M47: 701481 | N47: 767179 | O47: 2887809 | P47: 更新 困難地 | Q47: 面積 | R47: 7.86
B48: 成長 | C48: 1447 | D48: 231.8 | E48: 27.7 | F48: 3313.2 | G48: 16976.1 | H48: 54.8 | I48: 22050.6 | J48: 0 | L48: 465.3 | M48: 8309.6 | N48: 8774.9 | O48: 30825.5 | Q48: 蓄積 | R48: 324
A49: 15 以上 | B49: 面積 | C49: 816.95 | D49: 881.3 | E49: 73.86 | F49: 6304.71 | G49: 4639.2 | H49: 789.96 | I49: 13505.98 | J49: 185.06 | K49: 15.31 | L49: 485.51 | M49: 13922.48 | N49: 14608.36 | O49: 28114.34 | Q49: 成長 | R49: 7.3
B50: 蓄積 | C50: 405085 | D50: 206497 | E50: 14969 | F50: 1499069 | G50: 1270380 | H50: 167780 | I50: 3563780 | J50: 15655 | K50: 2057 | L50: 58130 | M50: 1593470 | N50: 1669312 | O50: 5233092
B51: 成長 | C51: 2348 | D51: 739.1 | E51: 66.8 | F51: 6294.1 | G51: 7066.1 | H51: 681.2 | I51: 17195.3 | J51: 0 | K51: 3.1 | L51: 380.6 | M51: 9135.1 | N51: 9518.8 | O51: 26714.1 | P51: 総 合 計
A52: 計 | B52: 面積 | C52: =SUM(C7,C10,C13,C16,C19,C22,C25,C28,C31,C34,C37,C40,C43,C46,C49) -> 2371.52 | D52: 3062.37 | E52: 99.81 | F52: 17981.55 | G52: 26730.65 | H52: 1487.69 | I52: 51733.59 | J52: =SUM(J7,J10,J13,J16,J19,J22,J25,J28,J31,J34,J37,J40,J43,J46,J49) -> 927.17 | K52: =SUM(K7,K10,K13,K16,K19,K22,K25,K28,K31,K34,K37,K40,K43,K46,K49) -> 21.99 | L52: =SUM(L7,L10,L13,L16,L19,L22,L25,L28,L31,L34,L37,L40,L43,L46,L49) -> 1481.51 | M52: =SUM(M7,M10,M13,M16,M19,M22,M25,M28,M31,M34,M37,M40,M43,M46,M49) -> 29192.76 | N52: =SUM(J52:M52) -> 31623.43 | O52: =SUM(N52,I52) -> 83357.02 | P52: 面 積 | R52: =SUM(O52,R45,R47,R46) -> 85562.54
B53: 蓄積 | C53: 1031298 | D53: 514937 | E53: 18836 | F53: 3883537 | G53: 6522222 | H53: 254553 | I53: 12225383 | J53: =SUM(J8,J11,J14,J17,J20,J23,J26,J29,J32,J35,J38,J41,J44,J47,J50) -> 77453 | K53: 2232 | L53: 153226 | M53: 3053686 | N53: =SUM(J53:M53) -> 3286597 | O53: 15511980 | P53: 蓄 積 | R53: =O53+R48 -> 15512304
B54: 成長 | C54: 9615.5 | D54: 10066.3 | E54: 131.3 | F54: 31196.9 | G54: 74168.4 | H54: 2995.7 | I54: 128174.1 | J54: 148.7 | K54: 20.3 | L54: 2045.1 | M54: 33106.4 | N54: =SUM(J54:M54) -> 35320.5 | O54: 163494.6 | P54: 成長量 | R54: =O54+R49 -> 163501.9

Sheet 北アルプス
A1: 第4表 地域振興局別・資源構成表
A3: 北アルプス地域振興局 | O3: 単位 面積 : ha、蓄積 成長量 : ㎥
B4: 樹種 | C4: 針 葉 樹 | J4: 広 葉 樹 | O4: 計
C5: ス ギ | D5: ヒ ノ キ | E5: サ ワ ラ | F5: ア カ マ ツ | G5: カ ラ マ ツ | H5: そ の 他 針 | I5: 小 計 | J5: ク ヌ ギ | K5: ブ ナ | L5: ナ ラ | M5: そ の 他 広 | N5: 小 計
A6: 齢級
A7: 1 | B7: 面積 | C7: 1.54 | D7: 1.21 | F7: 0.04 | G7: 16 | I7: 18.79 | J7: 0.52 | L7: 9.55 | M7: 43.58 | N7: 53.65 | O7: 72.44
B8: 蓄積 | C8: 0 | D8: 0 | F8: 0 | G8: 0 | I8: 0 | J8: 0 | L8: 0 | M8: 0 | N8: 0 | O8: 0
B9: 成長 | C9: 0 | D9: 0 | F9: 0 | G9: 0 | I9: 0 | J9: 0 | L9: 0 | M9: 0 | N9: 0 | O9: 0
A10: 2 | B10: 面積 | D10: 4.49 | G10: 23.53 | I10: 28.02 | L10: 5.07 | M10: 6.88 | N10: 11.95 | O10: 39.97
B11: 蓄積 | D11: 0 | G11: 0 | I11: 0 | L11: 57 | M11: 62 | N11: 119 | O11: 119
B12: 成長 | D12: 0 | G12: 0 | I12: 0 | L12: 7.8 | M12: 7.8 | N12: 15.6 | O12: 15.6
A13: 3 | B13: 面積 | C13: 1.54 | D13: 46.7 | F13: 0.22 | I13: 48.46 | L13: 2.87 | M13: 29.42 | N13: 32.29 | O13: 80.75
B14: 蓄積 | C14: 90 | D14: 1288 | F14: 11 | I14: 1389 | L14: 61 | M14: 599 | N14: 660 | O14: 2049
B15: 成長 | C15: 24.3 | D15: 251.4 | F15: 1.5 | I15: 277.2 | L15: 5.3 | M15: 57.2 | N15: 62.5 | O15: 339.7
A16: 4 | B16: 面積 | C16: 40.82 | D16: 60.91 | F16: 1.04 | G16: 0.65 | H16: 0.2 | I16: 103.62 | L16: 2.48 | M16: 20.1 | N16: 22.58 | O16: 126.2
B17: 蓄積 | C17: 2978 | D17: 2369 | F17: 74 | G17: 41 | H17: 5 | I17: 5467 | L17: 80 | M17: 788 | N17: 868 | O17: 6335
B18: 成長 | C18: 382.9 | D18: 237.2 | F18: 6.1 | G18: 3.3 | H18: 0.4 | I18: 629.9 | L18: 5.4 | M18: 53.6 | N18: 59 | O18: 688.9
A19: 5 | B19: 面積 | C19: 27.33 | D19: 100.79 | F19: 1.17 | G19: 19.57 | H19: 0.64 | I19: 149.5 | J19: 0.6 | K19: 0.45 | L19: 4.63 | M19: 157.42 | N19: 163.1 | O19: 312.6
B20: 蓄積 | C20: 3191 | D20: 6285 | F20: 89 | G20: 1883 | H20: 19 | I20: 11467 | J20: 30 | K20: 12 | L20: 175 | M20: 5708 | N20: 5925 | O20: 17392
B21: 成長 | C21: 248 | D21: 398.1 | F21: 5.3 | G21: 103.1 | H21: 1.3 | I21: 755.8 | J21: 0.9 | K21: 0.9 | L21: 9.2 | M21: 308.2 | N21: 319.2 | O21: 1075
A22: 6 | B22: 面積 | C22: 32.95 | D22: 128.82 | F22: 6.57 | G22: 19.64 | H22: 0.38 | I22: 188.36 | J22: 0.14 | K22: 3.64 | L22: 16.88 | M22: 314.98 | N22: 335.64 | O22: 524
B23: 蓄積 | C23: 6012 | D23: 9762 | F23: 670 | G23: 2602 | H23: 17 | I23: 19063 | J23: 8 | K23: 95 | L23: 748 | M23: 12977 | N23: 13828 | O23: 32891
B24: 成長 | C24: 309 | D24: 523.8 | F24: 30.1 | G24: 97.8 | H24: 0.9 | I24: 961.6 | J24: 0.2 | K24: 6.2 | L24: 30.2 | M24: 515.1 | N24: 551.7 | O24: 1513.3
A25: 7 | B25: 面積 | C25: 143.17 | D25: 71.53 | F25: 8.6 | G25: 32.22 | H25: 0.1 | I25: 255.62 | J25: 0.62 | K25: 3.94 | L25: 14.15 | M25: 491.49 | N25: 510.2 | O25: 765.82
B26: 蓄積 | C26: 29773 | D26: 7892 | F26: 1082 | G26: 5973 | H26: 3 | I26: 44723 | J26: 40 | K26: 134 | L26: 749 | M26: 24718 | N26: 25641 | O26: 70364
B27: 成長 | C27: 1210.7 | D27: 334.8 | F27: 33.8 | G27: 179.3 | H27: 0.1 | I27: 1758.7 | J27: 0.6 | K27: 7.5 | L27: 22.9 | M27: 758.7 | N27: 789.7 | O27: 2548.4
A28: 8 | B28: 面積 | C28: 242.8 | D28: 77.27 | F28: 6.41 | G28: 17.79 | H28: 0.1 | I28: 344.37 | J28: 2.1 | L28: 19.73 | M28: 436.68 | N28: 458.51 | O28: 802.88
B29: 蓄積 | C29: 60262 | D29: 12489 | F29: 914 | G29: 3193 | H29: 8 | I29: 76866 | J29: 146 | L29: 1203 | M29: 24736 | N29: 26085 | O29: 102951
B30: 成長 | C30: 1753.4 | D30: 406.3 | F30: 23.6 | G30: 77 | H30: 0.3 | I30: 2260.6 | J30: 1.2 | L30: 36.5 | M30: 754.4 | N30: 792.1 | O30: 3052.7
A31: 9 | B31: 面積 | C31: 381.73 | D31: 242.6 | E31: 0.1 | F31: 57.83 | G31: 31.23 | H31: 10.62 | I31: 724.11 | J31: 7.6 | K31: 15.13 | L31: 38.06 | M31: 628.21 | N31: 689 | O31: 1413.11
B32: 蓄積 | C32: 106641 | D32: 27946 | E32: 8 | F32: 9634 | G32: 5586 | H32: 1130 | I32: 150945 | J32: 553 | K32: 691 | L32: 2711 | M32: 41190 | N32: 45145 | O32: 196090
B33: 成長 | C33: 2023.2 | D33: 848.4 | E33: 0.3 | F33: 154 | G33: 108.8 | H33: 37.3 | I33: 3172 | J33: 2.1 | K33: 24.8 | L33: 71.4 | M33: 1078.7 | N33: 1177 | O33: 4349
A34: 10 | B34: 面積 | C34: 664.57 | D34: 140.74 | E34: 0.11 | F34: 229.48 | G34: 64.67 | H34: 38.04 | I34: 1137.61 | J34: 1.14 | K34: 13.37 | L34: 55.76 | M34: 836.18 | N34: 906.45 | O34: 2044.06
B35: 蓄積 | C35: 208204 | D35: 18661 | E35: 20 | F35: 39122 | G35: 14214 | H35: 4366 | I35: 284587 | J35: 91 | K35: 801 | L35: 4468 | M35: 64100 | N35: 69460 | O35: 354047
B36: 成長 | C36: 3358.3 | D36: 424 | E36: 0.4 | F36: 561.8 | G36: 226.7 | H36: 119.7 | I36: 4690.9 | J36: 0.1 | K36: 24.2 | L36: 113.7 | M36: 1628.4 | N36: 1766.4 | O36: 6457.3
A37: 11 | B37: 面積 | C37: 1024.68 | D37: 111.62 | E37: 1.43 | F37: 522.14 | G37: 91.4 | H37: 35.79 | I37: 1787.06 | J37: 0.26 | K37: 71.76 | L37: 50.15 | M37: 957.94 | N37: 1080.11 | O37: 2867.17
B38: 蓄積 | C38: 347401 | D38: 13122 | E38: 164 | F38: 94982 | G38: 19550 | H38: 4068 | I38: 479287 | J38: 16 | K38: 3839 | L38: 4419 | M38: 80892 | N38: 89166 | O38: 568453 | P38: 伐 跡 | R38: 31.25
B39: 成長 | C39: 4537.5 | D39: 299.8 | E39: 3.9 | F39: 1103.7 | G39: 286.4 | H39: 93.7 | I39: 6325 | J39: 0 | K39: 100.2 | L39: 82.5 | M39: 1497.5 | N39: 1680.2 | O39: 8005.2 | P39: 未立木地 | R39: 273.62
A40: 12 | B40: 面積 | C40: 1035.33 | D40: 40.97 | F40: 637.29 | G40: 368.24 | H40: 2.49 | I40: 2084.32 | J40: 1.6 | K40: 104.44 | L40: 107.51 | M40: 1659.55 | N40: 1873.1 | O40: 3957.42 | P40: 岩石地 | R40: 1576.85
B41: 蓄積 | C41: 378518 | D41: 5105 | F41: 121652 | G41: 84871 | H41: 343 | I41: 590489 | J41: 117 | K41: 7669 | L41: 9644 | M41: 148441 | N41: 165871 | O41: 756360 | P41: 崩壊地 | R41: 191.44
B42: 成長 | C42: 4154.7 | D42: 98.3 | F42: 1248.9 | G42: 1108.6 | H42: 6.5 | I42: 6617 | J42: 0 | K42: 182.7 | L42: 176.7 | M42: 2725.6 | N42: 3085 | O42: 9702 | P42: はげ山 | R42: 0.76
A43: 13 | B43: 面積 | C43: 958.72 | D43: 38.54 | F43: 642.05 | G43: 868.96 | H43: 3.29 | I43: 2511.56 | J43: 7.97 | K43: 27.27 | L43: 170.45 | M43: 2482.57 | N43: 2688.26 | O43: 5199.82 | P43: 施設敷 | R43: 33.99
B44: 蓄積 | C44: 350030 | D44: 6818 | F44: 127076 | G44: 197766 | H44: 462 | I44: 682152 | J44: 596 | K44: 1642 | L44: 16618 | M44: 230011 | N44: 248867 | O44: 931019 | P44: 林地開発 | R44: 48.14
B45: 成長 | C45: 3802.6 | D45: 114.3 | F45: 1246.2 | G45: 2540.5 | H45: 8.5 | I45: 7712.1 | J45: 0 | K45: 38.3 | L45: 275.8 | M45: 3805.6 | N45: 4119.7 | O45: 11831.8 | P45: 計 | R45: =SUM(R38:R44) -> 2156.05
A46: 14 | B46: 面積 | C46: 776.42 | D46: 29.11 | F46: 370.8 | G46: 935.67 | H46: 1.88 | I46: 2113.88 | J46: 17.13 | K46: 51.65 | L46: 248.2 | M46: 3242.96 | N46: 3559.94 | O46: 5673.82 | P46: 竹 林 | R46: 29.21
B47: 蓄積 | C47: 292031 | D47: 5123 | F47: 79477 | G47: 236319 | H47: 281 | I47: 613231 | J47: 1305 | K47: 4529 | L47: 25801 | M47: 322949 | N47: 354584 | O47: 967815 | P47: 更新 困難地 | Q47: 面積 | R47: 84.38
B48: 成長 | C48: 2927.8 | D48: 71.3 | F48: 652.1 | G48: 2617.4 | H48: 5 | I48: 6273.6 | J48: 0 | K48: 91.1 | L48: 326.8 | M48: 4137.5 | N48: 4555.4 | O48: 10829 | Q48: 蓄積 | R48: 24471
A49: 15 以上 | B49: 面積 | C49: 1568.23 | D49: 145.69 | E49: 6.93 | F49: 1359.66 | G49: 955.72 | H49: 405.68 | I49: 4441.91 | J49: 47.12 | K49: 1810.75 | L49: 1024.13 | M49: 16622.33 | N49: 19504.33 | O49: 23946.24 | Q49: 成長 | R49: 0
B50: 蓄積 | C50: 683814 | D50: 30026 | E50: 1287 | F50: 313131 | G50: 257114 | H50: 85302 | I50: 1370674 | J50: 3599 | K50: 225845 | L50: 112677 | M50: 1751614 | N50: 2093735 | O50: 3464409
B51: 成長 | C51: 4248.4 | D51: 91.1 | E51: 3.1 | F51: 1342.6 | G51: 1438.1 | H51: 386.8 | I51: 7510.1 | J51: 0 | K51: 1203.2 | L51: 575.3 | M51: 6201 | N51: 7979.5 | O51: 15489.6 | P51: 総 合 計
A52: 計 | B52: 面積 | C52: =SUM(C7,C10,C13,C16,C19,C22,C25,C28,C31,C34,C37,C40,C43,C46,C49) -> 6899.83 | D52: 1240.99 | E52: 8.57 | F52: 3843.3 | G52: 3445.29 | H52: 499.21 | I52: 15937.19 | J52: =SUM(J7,J10,J13,J16,J19,J22,J25,J28,J31,J34,J37,J40,J43,J46,J49) -> 86.8 | K52: =SUM(K7,K10,K13,K16,K19,K22,K25,K28,K31,K34,K37,K40,K43,K46,K49) -> 2102.4 | L52: =SUM(L7,L10,L13,L16,L19,L22,L25,L28,L31,L34,L37,L40,L43,L46,L49) -> 1769.62 | M52: =SUM(M7,M10,M13,M16,M19,M22,M25,M28,M31,M34,M37,M40,M43,M46,M49) -> 27930.29 | N52: =SUM(J52:M52) -> 31889.11 | O52: =SUM(N52,I52) -> 47826.3 | P52: 面 積 | R52: =SUM(O52,R45,R47,R46) -> 50095.94
B53: 蓄積 | C53: 2468945 | D53: 146886 | E53: 1479 | F53: 787914 | G53: 829112 | H53: 96004 | I53: 4330340 | J53: =SUM(J8,J11,J14,J17,J20,J23,J26,J29,J32,J35,J38,J41,J44,J47,J50) -> 6501 | K53: 245257 | L53: 179411 | M53: 2708785 | N53: =SUM(J53:M53) -> 3139954 | O53: 7470294 | P53: 蓄 積 | R53: =O53+R48 -> 7494765
B54: 成長 | C54: 28980.8 | D54: 4098.8 | E54: 7.7 | F54: 6409.7 | G54: 8787 | H54: 660.5 | I54: 48944.5 | J54: 5.1 | K54: 1679.1 | L54: 1739.5 | M54: 23529.3 | N54: =SUM(J54:M54) -> 26953 | O54: 75897.5 | P54: 成長量 | R54: =O54+R49 -> 75897.5

Sheet 長野
A1: 第4表 地域振興局別・資源構成表
A3: 長野地域振興局 | O3: 単位 面積 : ha、蓄積 成長量 : ㎥
B4: 樹種 | C4: 針 葉 樹 | J4: 広 葉 樹 | O4: 計
C5: ス ギ | D5: ヒ ノ キ | E5: サ ワ ラ | F5: ア カ マ ツ | G5: カ ラ マ ツ | H5: そ の 他 針 | I5: 小 計 | J5: ク ヌ ギ | K5: ブ ナ | L5: ナ ラ | M5: そ の 他 広 | N5: 小 計
A6: 齢級
A7: 1 | B7: 面積 | C7: 5.87 | F7: 1.59 | G7: 13.43 | I7: 20.89 | N7: 0 | O7: 20.89
B8: 蓄積 | C8: 0 | F8: 0 | G8: 0 | I8: 0 | N8: 0 | O8: 0
B9: 成長 | C9: 0 | F9: 0 | G9: 0 | I9: 0 | N9: 0 | O9: 0
A10: 2 | B10: 面積 | C10: 0.96 | D10: 0.2 | F10: 0.08 | G10: 19.45 | I10: 20.69 | J10: 0.71 | L10: 6.58 | M10: 11.94 | N10: 19.23 | O10: 39.92
B11: 蓄積 | C11: 0 | D11: 0 | F11: 0 | G11: 0 | I11: 0 | J11: 9 | L11: 86 | M11: 150 | N11: 245 | O11: 245
B12: 成長 | C12: 0 | D12: 0 | F12: 0 | G12: 0 | I12: 0 | J12: 2.9 | L12: 12.2 | M12: 21.3 | N12: 36.4 | O12: 36.4
A13: 3 | B13: 面積 | C13: 4.51 | D13: 1.15 | F13: 0.03 | G13: 7.86 | I13: 13.55 | K13: 0.06 | L13: 1.89 | M13: 51.96 | N13: 53.91 | O13: 67.46
B14: 蓄積 | C14: 440 | D14: 1323 | F14: 2 | G14: 3166 | I14: 4931 | K14: 1 | L14: 41 | M14: 1210 | N14: 1252 | O14: 6183
B15: 成長 | C15: 108.5 | D15: 243.6 | F15: 0.3 | G15: 316.6 | I15: 669 | K15: 0.1 | L15: 3.5 | M15: 109.4 | N15: 113 | O15: 782
A16: 4 | B16: 面積 | C16: 9.14 | D16: 18.54 | F16: 0.49 | G16: 4.39 | I16: 32.56 | J16: 8.78 | L16: 3.47 | M16: 56.2 | N16: 68.45 | O16: 101.01
B17: 蓄積 | C17: 1348 | D17: 2730 | F17: 45 | G17: 495 | I17: 4618 | J17: 269 | L17: 113 | M17: 1752 | N17: 2134 | O17: 6752
B18: 成長 | C18: 139.8 | D18: 271.2 | F18: 3.6 | G18: 34.1 | I18: 448.7 | J18: 12.5 | L18: 7.4 | M18: 119 | N18: 138.9 | O18: 587.6
A19: 5 | B19: 面積 | C19: 23.36 | D19: 47.61 | F19: 4.62 | G19: 10.66 | H19: 23.26 | I19: 109.51 | J19: 1.16 | K19: 4.29 | L19: 25.09 | M19: 144.07 | N19: 174.61 | O19: 284.12
B20: 蓄積 | C20: 4880 | D20: 5519 | F20: 331 | G20: 1376 | H20: 838 | I20: 12944 | J20: 71 | K20: 105 | L20: 1064 | M20: 5703 | N20: 6943 | O20: 19887
B21: 成長 | C21: 343.2 | D21: 327.1 | F21: 17.5 | G21: 74.6 | H21: 58.3 | I21: 820.7 | J21: 2.3 | K21: 8.2 | L21: 55.1 | M21: 304.9 | N21: 370.5 | O21: 1191.2
A22: 6 | B22: 面積 | C22: 112.7 | D22: 49.94 | F22: 6.3 | G22: 18.14 | H22: 17.62 | I22: 204.7 | J22: 2.44 | L22: 39.31 | M22: 355.35 | N22: 397.1 | O22: 601.8
B23: 蓄積 | C23: 28766 | D23: 7660 | F23: 852 | G23: 2786 | H23: 1127 | I23: 41191 | J23: 179 | L23: 2034 | M23: 17727 | N23: 19940 | O23: 61131
B24: 成長 | C24: 1387.5 | D24: 341.5 | F24: 32 | G24: 100.4 | H24: 60.7 | I24: 1922.1 | J24: 3.9 | L24: 82.2 | M24: 716.1 | N24: 802.2 | O24: 2724.3
A25: 7 | B25: 面積 | C25: 311.7 | D25: 57.23 | F25: 3.82 | G25: 20.18 | H25: 19.15 | I25: 412.08 | J25: 15.05 | K25: 6.16 | L25: 76.5 | M25: 726.2 | N25: 823.91 | O25: 1235.99
B26: 蓄積 | C26: 92757 | D26: 10727 | F26: 601 | G26: 3922 | H26: 1142 | I26: 109149 | J26: 1160 | K26: 203 | L26: 4690 | M26: 41098 | N26: 47151 | O26: 156300
B27: 成長 | C27: 3480.6 | D27: 372.6 | F27: 14.4 | G27: 111.9 | H27: 50.3 | I27: 4029.8 | J27: 17.8 | K27: 11.7 | L27: 145.8 | M27: 1270.1 | N27: 1445.4 | O27: 5475.2
A28: 8 | B28: 面積 | C28: 744.22 | D28: 64.98 | F28: 15.53 | G28: 58.41 | H28: 12.62 | I28: 895.76 | J28: 17.05 | L28: 174.49 | M28: 730.97 | N28: 922.51 | O28: 1818.27
B29: 蓄積 | C29: 261039 | D29: 16421 | F29: 2528 | G29: 11543 | H29: 786 | I29: 292317 | J29: 1308 | L29: 12402 | M29: 49382 | N29: 63092 | O29: 355409
B30: 成長 | C30: 8495.2 | D30: 454.3 | F30: 52.8 | G30: 268.4 | H30: 29 | I30: 9299.7 | J30: 10.9 | L30: 374.6 | M30: 1493.6 | N30: 1879.1 | O30: 11178.8
A31: 9 | B31: 面積 | C31: 1350.45 | D31: 141.54 | F31: 108.88 | G31: 89.52 | H31: 65.13 | I31: 1755.52 | J31: 15.42 | K31: 10.6 | L31: 110.73 | M31: 654.2 | N31: 790.95 | O31: 2546.47
B32: 蓄積 | C32: 537224 | D32: 29128 | F32: 21234 | G32: 19463 | H32: 5688 | I32: 612737 | J32: 1341 | K32: 796 | L32: 8931 | M32: 49670 | N32: 60738 | O32: 673475
B33: 成長 | C33: 12405.9 | D33: 666.6 | F33: 322.9 | G33: 420.9 | H33: 180.4 | I33: 13996.7 | J33: 6.7 | K33: 27.9 | L33: 249.6 | M33: 1376.5 | N33: 1660.7 | O33: 15657.4
A34: 10 | B34: 面積 | C34: 1526.99 | D34: 95.52 | F34: 225.34 | G34: 458.39 | H34: 53.01 | I34: 2359.25 | J34: 13.33 | K34: 4.51 | L34: 57.21 | M34: 718.99 | N34: 794.04 | O34: 3153.29
B35: 蓄積 | C35: 659147 | D35: 20783 | F35: 44708 | G35: 105122 | H35: 4859 | I35: 834619 | J35: 1182 | K35: 387 | L35: 5307 | M35: 62362 | N35: 69238 | O35: 903857
B36: 成長 | C36: 11318.7 | D36: 381.2 | F36: 595.2 | G36: 1625.7 | H36: 133.8 | I36: 14054.6 | J36: 1.9 | K36: 10.8 | L36: 135 | M36: 1585 | N36: 1732.7 | O36: 15787.3
A37: 11 | B37: 面積 | C37: 2139.51 | D37: 84.97 | F37: 432.57 | G37: 771.53 | H37: 33.47 | I37: 3462.05 | J37: 15.59 | K37: 2.01 | L37: 79.86 | M37: 1281.14 | N37: 1378.6 | O37: 4840.65
B38: 蓄積 | C38: 995297 | D38: 19997 | F38: 90867 | G38: 203711 | H38: 3443 | I38: 1313315 | J38: 1376 | K38: 195 | L38: 8226 | M38: 122139 | N38: 131936 | O38: 1445251 | P38: 伐 跡 | R38: 75.31
B39: 成長 | C39: 12164.7 | D39: 325.8 | F39: 1014.6 | G39: 2869.2 | H39: 80.8 | I39: 16455.1 | J39: 0 | K39: 4.7 | L39: 164 | M39: 2390.5 | N39: 2559.2 | O39: 19014.3 | P39: 未立木地 | R39: 1405.04
A40: 12 | B40: 面積 | C40: 2670.57 | D40: 8.4 | F40: 774.83 | G40: 2740.01 | H40: 15.54 | I40: 6209.35 | J40: 37.21 | K40: 6.7 | L40: 120.28 | M40: 1880.99 | N40: 2045.18 | O40: 8254.53 | P40: 岩石地 | R40: 644.55
B41: 蓄積 | C41: 1322502 | D41: 2220 | F41: 167485 | G41: 762828 | H41: 2002 | I41: 2257037 | J41: 3307 | K41: 484 | L41: 13226 | M41: 194616 | N41: 211633 | O41: 2468670 | P41: 崩壊地 | R41: 509.62
B42: 成長 | C42: 14606.3 | D42: 31.1 | F42: 1567.4 | G42: 9922.9 | H42: 38.3 | I42: 26166 | J42: 0 | K42: 11.6 | L42: 247.3 | M42: 3651.2 | N42: 3910.1 | O42: 30076.1 | P42: はげ山 | R42: 4.66
A43: 13 | B43: 面積 | C43: 2640.95 | D43: 7.24 | E43: 0.39 | F43: 616.08 | G43: 5520.52 | H43: 10.55 | I43: 8795.73 | J43: 138.35 | K43: 7.97 | L43: 335.36 | M43: 3819.1 | N43: 4300.78 | O43: 13096.51 | P43: 施設敷 | R43: 50.45
B44: 蓄積 | C44: 1355069 | D44: 1895 | E44: 107 | F44: 138258 | G44: 1570194 | H44: 1659 | I44: 3067182 | J44: 12162 | K44: 877 | L44: 38723 | M44: 421974 | N44: 473736 | O44: 3540918 | P44: 林地開発 | R44: 81.49
B45: 成長 | C45: 14554.3 | D45: 25.9 | E45: 1.3 | F45: 1265 | G45: 20084.6 | H45: 31.1 | I45: 35962.2 | J45: 0 | K45: 19.3 | L45: 624 | M45: 6894.7 | N45: 7538 | O45: 43500.2 | P45: 計 | R45: =SUM(R38:R44) -> 2771.12
A46: 14 | B46: 面積 | C46: 1836.27 | D46: 12.88 | F46: 551.59 | G46: 4060.88 | H46: 4.03 | I46: 6465.65 | J46: 321.31 | K46: 2.89 | L46: 628.94 | M46: 6633.16 | N46: 7586.3 | O46: 14051.95 | P46: 竹 林 | R46: 160.69
B47: 蓄積 | C47: 966909 | D47: 3516 | F47: 128481 | G47: 1211957 | H47: 751 | I47: 2311614 | J47: 28128 | K47: 107 | L47: 76072 | M47: 767022 | N47: 871329 | O47: 3182943 | P47: 更新 困難地 | Q47: 面積 | R47: 16.95
B48: 成長 | C48: 7967.1 | D48: 39.6 | F48: 1029.3 | G48: 13100.5 | H48: 11.9 | I48: 22148.4 | J48: 0 | K48: 2.1 | L48: 828.2 | M48: 8632.8 | N48: 9463.1 | O48: 31611.5 | Q48: 蓄積 | R48: 2832
A49: 15 以上 | B49: 面積 | C49: 3317.11 | D49: 217.89 | E49: 1.71 | F49: 3328.97 | G49: 3385.22 | H49: 567.24 | I49: 10818.14 | J49: 351.88 | K49: 478.71 | L49: 1107.6 | M49: 15381.05 | N49: 17319.24 | O49: 28137.38 | Q49: 成長 | R49: 16.3
B50: 蓄積 | C50: 1895995 | D50: 61908 | E50: 515 | F50: 809022 | G50: 1054354 | H50: 115649 | I50: 3937443 | J50: 30337 | K50: 67543 | L50: 140632 | M50: 1866904 | N50: 2105416 | O50: 6042859
B51: 成長 | C51: 8035.8 | D51: 76 | E51: 1.7 | F51: 2911 | G51: 6180.9 | H51: 369.4 | I51: 17574.8 | J51: 0 | K51: 60.7 | L51: 992.8 | M51: 10575.6 | N51: 11629.1 | O51: 29203.9 | P51: 総 合 計
A52: 計 | B52: 面積 | C52: =SUM(C7,C10,C13,C16,C19,C22,C25,C28,C31,C34,C37,C40,C43,C46,C49) -> 16694.31 | D52: 808.09 | E52: 2.1 | F52: 6070.72 | G52: 17178.59 | H52: 821.62 | I52: 41575.43 | J52: =SUM(J7,J10,J13,J16,J19,J22,J25,J28,J31,J34,J37,J40,J43,J46,J49) -> 938.28 | K52: =SUM(K7,K10,K13,K16,K19,K22,K25,K28,K31,K34,K37,K40,K43,K46,K49) -> 523.9 | L52: =SUM(L7,L10,L13,L16,L19,L22,L25,L28,L31,L34,L37,L40,L43,L46,L49) -> 2767.31 | M52: =SUM(M7,M10,M13,M16,M19,M22,M25,M28,M31,M34,M37,M40,M43,M46,M49) -> 32445.32 | N52: =SUM(J52:M52) -> 36674.81 | O52: =SUM(N52,I52) -> 78250.24 | P52: 面 積 | R52: =SUM(O52,R45,R47,R46) -> 81199
B53: 蓄積 | C53: 8121373 | D53: 183827 | E53: 622 | F53: 1404414 | G53: 4950917 | H53: 137944 | I53: 14799097 | J53: =SUM(J8,J11,J14,J17,J20,J23,J26,J29,J32,J35,J38,J41,J44,J47,J50) -> 80829 | K53: 70698 | L53: 311547 | M53: 3601709 | N53: =SUM(J53:M53) -> 4064783 | O53: 18863880 | P53: 蓄 積 | R53: =O53+R48 -> 18866712
B54: 成長 | C54: 95007.6 | D54: 3556.5 | E54: 3 | F54: 8826 | G54: 55110.7 | H54: 1044 | I54: 163547.8 | J54: 58.9 | K54: 157.1 | L54: 3921.7 | M54: 39140.7 | N54: =SUM(J54:M54) -> 43278.4 | O54: 206826.2 | P54: 成長量 | R54: =O54+R49 -> 206842.5

Sheet 北信
A1: 第4表 地域振興局別・資源構成表
A3: 北信地域振興局 | O3: 単位 面積 : ha、蓄積 成長量 : ㎥
B4: 樹種 | C4: 針 葉 樹 | J4: 広 葉 樹 | O4: 計
C5: ス ギ | D5: ヒ ノ キ | E5: サ ワ ラ | F5: ア カ マ ツ | G5: カ ラ マ ツ | H5: そ の 他 針 | I5: 小 計 | J5: ク ヌ ギ | K5: ブ ナ | L5: ナ ラ | M5: そ の 他 広 | N5: 小 計
A6: 齢級
A7: 1 | B7: 面積 | I7: 0 | M7: 0.12 | N7: 0.12 | O7: 0.12
B8: 蓄積 | I8: 0 | M8: 0 | N8: 0 | O8: 0
B9: 成長 | I9: 0 | M9: 0 | N9: 0 | O9: 0
A10: 2 | B10: 面積 | C10: 5.32 | F10: 0.03 | G10: 12.8 | I10: 18.15 | K10: 2.38 | M10: 6.16 | N10: 8.54 | O10: 26.69
B11: 蓄積 | C11: 0 | F11: 0 | G11: 0 | I11: 0 | K11: 0 | M11: 89 | N11: 89 | O11: 89
B12: 成長 | C12: 0 | F12: 0 | G12: 0 | I12: 0 | K12: 0 | M12: 12.6 | N12: 12.6 | O12: 12.6
A13: 3 | B13: 面積 | C13: 6.99 | F13: 0.09 | I13: 7.08 | L13: 0.08 | M13: 34.45 | N13: 34.53 | O13: 41.61
B14: 蓄積 | C14: 692 | F14: 5 | I14: 697 | L14: 2 | M14: 808 | N14: 810 | O14: 1507
B15: 成長 | C15: 119.7 | F15: 0.7 | I15: 120.4 | L15: 0.2 | M15: 70.8 | N15: 71 | O15: 191.4
A16: 4 | B16: 面積 | C16: 22.35 | F16: 0.32 | G16: 0.02 | I16: 22.69 | J16: 0.3 | K16: 0.7 | L16: 2.72 | M16: 87 | N16: 90.72 | O16: 113.41
B17: 蓄積 | C17: 5419 | F17: 25 | G17: 2 | I17: 5446 | J17: 18 | K17: 86 | L17: 88 | M17: 2623 | N17: 2815 | O17: 8261
B18: 成長 | C18: 550.4 | F18: 2.1 | G18: 0.1 | I18: 552.6 | J18: 0.8 | K18: 8.8 | L18: 5.8 | M18: 176.5 | N18: 191.9 | O18: 744.5
A19: 5 | B19: 面積 | C19: 81.33 | D19: 0.32 | F19: 0.21 | G19: 1.46 | H19: 0.24 | I19: 83.56 | J19: 0.16 | K19: 8.72 | L19: 3.37 | M19: 106.37 | N19: 118.62 | O19: 202.18
B20: 蓄積 | C20: 14223 | D20: 103 | F20: 24 | G20: 186 | H20: 12 | I20: 14548 | J20: 10 | K20: 158 | L20: 144 | M20: 4208 | N20: 4520 | O20: 19068
B21: 成長 | C21: 1028.4 | D21: 6 | F21: 1.2 | G21: 10 | H21: 0.8 | I21: 1046.4 | J21: 0.3 | K21: 12.6 | L21: 7.6 | M21: 221.8 | N21: 242.3 | O21: 1288.7
A22: 6 | B22: 面積 | C22: 137.77 | D22: 0.6 | F22: 0.76 | G22: 1.13 | H22: 0.12 | I22: 140.38 | J22: 0.21 | K22: 0.26 | L22: 10.13 | M22: 225.12 | N22: 235.72 | O22: 376.1
B23: 蓄積 | C23: 33705 | D23: 83 | F23: 103 | G23: 185 | H23: 5 | I23: 34081 | J23: 16 | K23: 85 | L23: 513 | M23: 11361 | N23: 11975 | O23: 46056
B24: 成長 | C24: 1685.8 | D24: 3.7 | F24: 3.8 | G24: 6.6 | H24: 0.3 | I24: 1700.2 | J24: 0.4 | K24: 5.6 | L24: 21.2 | M24: 463.2 | N24: 490.4 | O24: 2190.6
A25: 7 | B25: 面積 | C25: 252.77 | D25: 0.15 | F25: 0.5 | G25: 4.65 | H25: 0.11 | I25: 258.18 | J25: 0.46 | K25: 6.99 | L25: 23.52 | M25: 301.74 | N25: 332.71 | O25: 590.89
B26: 蓄積 | C26: 77644 | D26: 23 | F26: 81 | G26: 745 | H26: 10 | I26: 78503 | J26: 37 | K26: 223 | L26: 1472 | M26: 17697 | N26: 19429 | O26: 97932
B27: 成長 | C27: 3035 | D27: 0.8 | F27: 1.9 | G27: 21.2 | H27: 0.4 | I27: 3059.3 | J27: 0.5 | K27: 12.7 | L27: 46.2 | M27: 549.3 | N27: 608.7 | O27: 3668
A28: 8 | B28: 面積 | C28: 497.5 | D28: 5.8 | F28: 3.48 | G28: 30.42 | I28: 537.2 | J28: 2.78 | K28: 10.84 | L28: 54.81 | M28: 378.3 | N28: 446.73 | O28: 983.93
B29: 蓄積 | C29: 175751 | D29: 917 | F29: 613 | G29: 4973 | I29: 182254 | J29: 235 | K29: 570 | L29: 3922 | M29: 26181 | N29: 30908 | O29: 213162
B30: 成長 | C30: 5772 | D30: 27.5 | F30: 12.3 | G30: 124 | I30: 5935.8 | J30: 2.5 | K30: 24.3 | L30: 118.3 | M30: 790 | N30: 935.1 | O30: 6870.9
A31: 9 | B31: 面積 | C31: 867.67 | D31: 0.6 | F31: 9.16 | G31: 44.09 | H31: 0.13 | I31: 921.65 | J31: 2.79 | K31: 3.02 | L31: 38.01 | M31: 423.45 | N31: 467.27 | O31: 1388.92
B32: 蓄積 | C32: 327627 | D32: 127 | F32: 1874 | G32: 8239 | H32: 16 | I32: 337883 | J32: 247 | K32: 210 | L32: 3097 | M32: 33091 | N32: 36645 | O32: 374528
B33: 成長 | C33: 7685.5 | D33: 2.9 | F33: 28 | G33: 165.2 | H33: 0.5 | I33: 7882.1 | J33: 1.3 | K33: 7.3 | L33: 86.9 | M33: 920.8 | N33: 1016.3 | O33: 8898.4
A34: 10 | B34: 面積 | C34: 1132.56 | D34: 0.39 | F34: 33.13 | G34: 27.84 | H34: 6.93 | I34: 1200.85 | J34: 2.32 | K34: 58.24 | L34: 20.75 | M34: 428.63 | N34: 509.94 | O34: 1710.79
B35: 蓄積 | C35: 473704 | D35: 88 | F35: 6569 | G35: 6567 | H35: 588 | I35: 487516 | J35: 207 | K35: 3157 | L35: 1917 | M35: 35123 | N35: 40404 | O35: 527920
B36: 成長 | C36: 8217.5 | D36: 1.6 | F36: 85.1 | G36: 102.3 | H36: 16.5 | I36: 8423 | J36: 0.4 | K36: 97.2 | L36: 48.9 | M36: 892.3 | N36: 1038.8 | O36: 9461.8
A37: 11 | B37: 面積 | C37: 1521.14 | D37: 0.11 | F37: 41.85 | G37: 117.48 | H37: 11.11 | I37: 1691.69 | J37: 1.68 | K37: 130.41 | L37: 23.45 | M37: 2087.61 | N37: 2243.15 | O37: 3934.84
B38: 蓄積 | C38: 698752 | D38: 27 | F38: 8387 | G38: 31838 | H38: 481 | I38: 739485 | J38: 153 | K38: 8912 | L38: 2422 | M38: 139973 | N38: 151460 | O38: 890945 | P38: 伐 跡 | R38: 28.19
B39: 成長 | C39: 8657.8 | D39: 0.4 | F39: 94.4 | G39: 450.5 | H39: 11.1 | I39: 9214.2 | J39: 0 | K39: 229.9 | L39: 48.5 | M39: 2601.9 | N39: 2880.3 | O39: 12094.5 | P39: 未立木地 | R39: 400.9
A40: 12 | B40: 面積 | C40: 1810.17 | F40: 53.13 | G40: 520.01 | H40: 43.12 | I40: 2426.43 | J40: 0.71 | K40: 107.53 | L40: 31.61 | M40: 1973.75 | N40: 2113.6 | O40: 4540.03 | P40: 岩石地 | R40: 89.57
B41: 蓄積 | C41: 901198 | F41: 12182 | G41: 144439 | H41: 4331 | I41: 1062150 | J41: 69 | K41: 10440 | L41: 3412 | M41: 162436 | N41: 176357 | O41: 1238507 | P41: 崩壊地 | R41: 172.07
B42: 成長 | C42: 9917.6 | F42: 110.5 | G42: 1887.5 | H42: 82.3 | I42: 11997.9 | J42: 0 | K42: 233.6 | L42: 65.5 | M42: 3001.6 | N42: 3300.7 | O42: 15298.6 | P42: はげ山 | R42: 22.67
A43: 13 | B43: 面積 | C43: 1606.08 | D43: 0.22 | F43: 61.76 | G43: 884.12 | H43: 152.88 | I43: 2705.06 | J43: 5.71 | K43: 476.54 | L43: 66.32 | M43: 3017.28 | N43: 3565.85 | O43: 6270.91 | P43: 施設敷 | R43: 94.02
B44: 蓄積 | C44: 833877 | D44: 60 | F44: 13970 | G44: 255804 | H44: 17925 | I44: 1121636 | J44: 523 | K44: 38742 | L44: 7826 | M44: 300877 | N44: 347968 | O44: 1469604 | P44: 林地開発 | R44: 90.66
B45: 成長 | C45: 8871.7 | D45: 0.8 | F45: 129.3 | G45: 3272 | H45: 340.4 | I45: 12614.2 | J45: 0 | K45: 869.9 | L45: 124 | M45: 4902.9 | N45: 5896.8 | O45: 18511 | P45: 計 | R45: =SUM(R38:R44) -> 898.08
A46: 14 | B46: 面積 | C46: 1362.24 | D46: 0.04 | F46: 93.88 | G46: 798.28 | H46: 43.15 | I46: 2297.59 | J46: 8.21 | K46: 193.76 | L46: 149.95 | M46: 3603.21 | N46: 3955.13 | O46: 6252.72 | P46: 竹 林 | R46: 2.02
B47: 蓄積 | C47: 734814 | D47: 12 | F47: 23135 | G47: 239690 | H47: 4766 | I47: 1002417 | J47: 755 | K47: 20583 | L47: 18244 | M47: 398251 | N47: 437833 | O47: 1440250 | P47: 更新 困難地 | Q47: 面積 | R47: 31.51
B48: 成長 | C48: 6120.3 | D48: 0.1 | F48: 178.5 | G48: 2592.2 | H48: 85.8 | I48: 8976.9 | J48: 0 | K48: 388 | L48: 201.8 | M48: 4657 | N48: 5246.8 | O48: 14223.7 | Q48: 蓄積 | R48: 4594
A49: 15 以上 | B49: 面積 | C49: 2743.33 | D49: 38.45 | F49: 338.18 | G49: 600.65 | H49: 2118.05 | I49: 5838.66 | J49: 10.78 | K49: 2230.77 | L49: 362.56 | M49: 13422.23 | N49: 16026.34 | O49: 21865 | Q49: 成長 | R49: 3.3
B50: 蓄積 | C50: 1568523 | D50: 10553 | F50: 89728 | G50: 193098 | H50: 400513 | I50: 2262415 | J50: 1002 | K50: 296303 | L50: 44313 | M50: 1466583 | N50: 1808201 | O50: 4070616
B51: 成長 | C51: 7067.2 | D51: 0.5 | F51: 361.5 | G51: 983.4 | H51: 571.8 | I51: 8984.4 | J51: 0 | K51: 1751.6 | L51: 145.1 | M51: 6260.9 | N51: 8157.6 | O51: 17142 | P51: 総 合 計
A52: 計 | B52: 面積 | C52: =SUM(C7,C10,C13,C16,C19,C22,C25,C28,C31,C34,C37,C40,C43,C46,C49) -> 12047.22 | D52: 46.68 | E52: 0 | F52: 636.48 | G52: 3042.95 | H52: 2375.84 | I52: 18149.17 | J52: =SUM(J7,J10,J13,J16,J19,J22,J25,J28,J31,J34,J37,J40,J43,J46,J49) -> 36.11 | K52: =SUM(K7,K10,K13,K16,K19,K22,K25,K28,K31,K34,K37,K40,K43,K46,K49) -> 3230.16 | L52: =SUM(L7,L10,L13,L16,L19,L22,L25,L28,L31,L34,L37,L40,L43,L46,L49) -> 787.28 | M52: =SUM(M7,M10,M13,M16,M19,M22,M25,M28,M31,M34,M37,M40,M43,M46,M49) -> 26095.42 | N52: =SUM(J52:M52) -> 30148.97 | O52: =SUM(N52,I52) -> 48298.14 | P52: 面 積 | R52: =SUM(O52,R45,R47,R46) -> 49229.75
B53: 蓄積 | C53: 5845929 | D53: 11993 | E53: 0 | F53: 156696 | G53: 885766 | H53: 428647 | I53: 7329031 | J53: =SUM(J8,J11,J14,J17,J20,J23,J26,J29,J32,J35,J38,J41,J44,J47,J50) -> 3272 | K53: 379469 | L53: 87372 | M53: 2599301 | N53: =SUM(J53:M53) -> 3069414 | O53: 10398445 | P53: 蓄 積 | R53: =O53+R48 -> 10403039
B54: 成長 | C54: 68728.9 | D54: 44.3 | E54: 0 | F54: 1009.3 | G54: 9615 | H54: 1109.9 | I54: 80507.4 | J54: 6.2 | K54: 3641.5 | L54: 920 | M54: 25521.6 | N54: =SUM(J54:M54) -> 30089.3 | O54: 110596.7 | P54: 成長量 | R54: =O54+R49 -> 110600
